Workbook

Sheet Effizienz-Faktor-Neu
T2: Copyright© by Gian-Marchet® 2008 Alle Rechte vorbehalten All Rights reserved
A3: Rang | B3: Effizienz-Faktor | C3: Patrone | D3: Hülsenvolumen randvoll | E3: Brennraum Effektiv | F3: Brennraum Faktor | G3: Maximal zulässiger Gasdruck gemäss CIP | H3: Effektiver Gasdruck | I3: Gasdruck Faktor | J3: Ladungsmasse | K3: Pulver-Sorte | L3: Geschossmasse in Gramm | M3: Geschossmasse in Grains | N3: Kaliber | O3: BC | P3: V° | Q3: V200 | R3: E° | S3: E200 | T3: Gasdruck CIP / Brennraum Faktor / Gasdruck Faktor | U3: V° *V° / Ladungsmasse / 10000 | V3: Lauflänge
A4: 1 | B4: =(T4*U4*L4/10000)*(T4/6000) -> 132.2321952 | C4: .376 Steyr | D4: 4.95 | E4: 3.846 | F4: =E4/D4 -> 0.776969697 | G4: 4300 | H4: 3594 | I4: =H4/G4 -> 0.8358139535 | J4: 54 | K4: R901 | L4: =$E$146 -> 15.5 | M4: =$F$146 -> 239 | N4: =$D$146 -> 0.375 | O4: =$G$146 -> 0.4 | P4: 794 | Q4: =P4*$H$146 -> 667.754 | R4: =P4^2*L4/2000 -> 4885.879 | S4: =Q4^2*L4/2000 -> 3455.689385 | T4: =(G4/F4/I4) -> 6621.47521 | U4: =(P4^2/J4/1000) -> 11.67474074 | V4: 600
A5: 2 | B5: =(T5*U5*L5/10000)*(T5/6000) -> 113.4871734 | C5: .416/323 Gian-Marchet® | D5: 5.001 | E5: 4.071 | F5: =E5/D5 -> 0.8140371926 | G5: 4400 | H5: 4010 | I5: =H5/G5 -> 0.9113636364 | J5: 55 | K5: N120 | L5: =$E$144 -> 17.5 | M5: =$F$144 -> 270 | N5: =$D$144 -> 0.416 | O5: =$G$144 -> 0.375 | P5: 780 | Q5: =P5*$H$144 -> 646.62 | R5: =P5^2*L5/2000 -> 5323.5 | S5: =Q5^2*L5/2000 -> 3658.527464 | T5: =(G5/F5/I5) -> 5930.847164 | U5: =(P5^2/J5/1000) -> 11.06181818 | V5: 600
A6: 3 | B6: =(T6*U6*L6/10000)*(T6/6000) -> 108.1770039 | C6: .416/323 Gian-Marchet® | D6: 5.001 | E6: 4.071 | F6: =E6/D6 -> 0.8140371926 | G6: 4400 | H6: 4398 | I6: =H6/G6 -> 0.9995454545 | J6: 45.9 | K6: R910 | L6: =$E$144 -> 17.5 | M6: =$F$144 -> 270 | N6: =$D$144 -> 0.416 | O6: =$G$144 -> 0.375 | P6: 763 | Q6: =P6*$H$144 -> 632.527 | R6: =P6^2*L6/2000 -> 5093.97875 | S6: =Q6^2*L6/2000 -> 3500.79105 | T6: =(G6/F6/I6) -> 5407.616445 | U6: =(P6^2/J6/1000) -> 12.68342048 | V6: 600
A7: 4 | B7: =(T7*U7*L7/10000)*(T7/6000) -> 106.6316987 | C7: .376 Steyr | D7: 4.95 | E7: 3.846 | F7: =E7/D7 -> 0.776969697 | G7: 4300 | H7: 4050 | I7: =H7/G7 -> 0.9418604651 | J7: 53 | K7: N130 | L7: =$E$146 -> 15.5 | M7: =$F$146 -> 239 | N7: =$D$146 -> 0.375 | O7: =$G$146 -> 0.4 | P7: 796 | Q7: =P7*$H$146 -> 669.436 | R7: =P7^2*L7/2000 -> 4910.524 | S7: =Q7^2*L7/2000 -> 3473.120325 | T7: =(G7/F7/I7) -> 5875.946149 | U7: =(P7^2/J7/1000) -> 11.95501887 | V7: 600
A8: 5 | B8: =(T8*U8*L8/10000)*(T8/6000) -> 102.0221753 | C8: 10,3x72 Gian-Marchet® | D8: 6.351 | E8: 5.523 | F8: =E8/D8 -> 0.8696268304 | G8: 4300 | H8: 3571 | I8: =H8/G8 -> 0.8304651163 | J8: 74 | K8: R901 | L8: =$E$145 -> 16.5 | M8: =$F$145 -> 254 | N8: =$D$145 -> 0.413 | O8: =$G$145 -> 0.345 | P8: 880 | Q8: =P8*$H$145 -> 711.92 | R8: =P8^2*L8/2000 -> 6388.8 | S8: =Q8^2*L8/2000 -> 4181.348213 | T8: =(G8/F8/I8) -> 5954.072664 | U8: =(P8^2/J8/1000) -> 10.46486486 | V8: 685
A9: 6 | B9: =(T9*U9*L9/10000)*(T9/6000) -> 100.2825909 | C9: .416 Taylor | D9: 5.844 | E9: 4.885 | F9: =E9/D9 -> 0.8359000684 | G9: 4400 | H9: 4027 | I9: =H9/G9 -> 0.9152272727 | J9: 70 | K9: R901 | L9: =$E$144 -> 17.5 | M9: =$F$144 -> 270 | N9: =$D$144 -> 0.416 | O9: =$G$144 -> 0.375 | P9: 853 | Q9: =P9*$H$144 -> 707.137 | R9: =P9^2*L9/2000 -> 6366.57875 | S9: =Q9^2*L9/2000 -> 4375.373947 | T9: =(G9/F9/I9) -> 5751.34424 | U9: =(P9^2/J9/1000) -> 10.39441429 | V9: 650
A10: 7 | B10: =(T10*U10*L10/10000)*(T10/6000) -> 95.96602505 | C10: .416 Taylor | D10: 5.844 | E10: 4.885 | F10: =E10/D10 -> 0.8359000684 | G10: 4400 | H10: 4114 | I10: =H10/G10 -> 0.935 | J10: 67 | K10: N130 | L10: =$E$144 -> 17.5 | M10: =$F$144 -> 270 | N10: =$D$144 -> 0.416 | O10: =$G$144 -> 0.375 | P10: 834 | Q10: =P10*$H$144 -> 691.386 | R10: =P10^2*L10/2000 -> 6086.115 | S10: =Q10^2*L10/2000 -> 4182.627759 | T10: =(G10/F10/I10) -> 5629.718827 | U10: =(P10^2/J10/1000) -> 10.38143284 | V10: 650
A11: 8 | B11: =(T11*U11*L11/10000)*(T11/6000) -> 93.63300492 | C11: .416 Remington Magnum | D11: 6.876 | E11: 5.923 | F11: =E11/D11 -> 0.8614019779 | G11: 4300 | H11: 3706 | I11: =H11/G11 -> 0.8618604651 | J11: 75.5 | K11: N130 | L11: =$E$144 -> 17.5 | M11: =$F$144 -> 270 | N11: =$D$144 -> 0.416 | O11: =$G$144 -> 0.375 | P11: 850 | Q11: =P11*$H$144 -> 704.65 | R11: =P11^2*L11/2000 -> 6321.875 | S11: =Q11^2*L11/2000 -> 4344.651697 | T11: =(G11/F11/I11) -> 5791.961035 | U11: =(P11^2/J11/1000) -> 9.569536424 | V11: 650
A12: 9 | B12: =(T12*U12*L12/10000)*(T12/6000) -> 92.16650971 | C12: .375 Holland & Holland Magnum | D12: 6.188 | E12: 5.059 | F12: =E12/D12 -> 0.817550097 | G12: 4300 | H12: 3906 | I12: =H12/G12 -> 0.908372093 | J12: 69.5 | K12: R902 | L12: =$E$146 -> 15.5 | M12: =$F$146 -> 239 | N12: =$D$146 -> 0.375 | O12: =$G$146 -> 0.4 | P12: 860 | Q12: =P12*$H$146 -> 723.26 | R12: =P12^2*L12/2000 -> 5731.9 | S12: =Q12^2*L12/2000 -> 4054.063964 | T12: =(G12/F12/I12) -> 5790.156441 | U12: =(P12^2/J12/1000) -> 10.64172662 | V12: 627
A13: 10 | B13: =(T13*U13*L13/10000)*(T13/6000) -> 86.42366413 | C13: .375 Holland & Holland Magnum | D13: 6.188 | E13: 5.059 | F13: =E13/D13 -> 0.817550097 | G13: 4300 | H13: 4043 | I13: =H13/G13 -> 0.9402325581 | J13: 66 | K13: N133 | L13: =$E$146 -> 15.5 | M13: =$F$146 -> 239 | N13: =$D$146 -> 0.375 | O13: =$G$146 -> 0.4 | P13: 840 | Q13: =P13*$H$146 -> 706.44 | R13: =P13^2*L13/2000 -> 5468.4 | S13: =Q13^2*L13/2000 -> 3867.69542 | T13: =(G13/F13/I13) -> 5593.952772 | U13: =(P13^2/J13/1000) -> 10.69090909 | V13: 627
A14: 11 | B14: =(T14*U14*L14/10000)*(T14/6000) -> 84.21202466 | C14: 9,3x64 | D14: 5.714 | E14: 4.994 | F14: =E14/D14 -> 0.8739936997 | G14: 4400 | H14: 3924 | I14: =H14/G14 -> 0.8918181818 | J14: 70 | K14: R902 | L14: =$E$147 -> 13 | M14: =$F$147 -> 200 | N14: =$D$147 -> 0.366 | O14: =$G$147 -> 0.4 | P14: 924 | Q14: =P14*$H$147 -> 758.604 | R14: =P14^2*L14/2000 -> 5549.544 | S14: =Q14^2*L14/2000 -> 3740.620187 | T14: =(G14/F14/I14) -> 5645.053371 | U14: =(P14^2/J14/1000) -> 12.1968 | V14: 650
A15: 12 | B15: =(T15*U15*L15/10000)*(T15/6000) -> 83.21020314 | C15: 9,3x64 | D15: 5.714 | E15: 4.994 | F15: =E15/D15 -> 0.8739936997 | G15: 4400 | H15: 3936 | I15: =H15/G15 -> 0.8945454545 | J15: 69.5 | K15: N140 | L15: =$E$147 -> 13 | M15: =$F$147 -> 200 | N15: =$D$147 -> 0.366 | O15: =$G$147 -> 0.4 | P15: 918 | Q15: =P15*$H$147 -> 753.678 | R15: =P15^2*L15/2000 -> 5477.706 | S15: =Q15^2*L15/2000 -> 3692.19843 | T15: =(G15/F15/I15) -> 5627.842842 | U15: =(P15^2/J15/1000) -> 12.12552518 | V15: 650
A16: 13 | B16: =(T16*U16*L16/10000)*(T16/6000) -> 81.46932063 | C16: .416 Remington Magnum | D16: 6.876 | E16: 5.923 | F16: =E16/D16 -> 0.8614019779 | G16: 4300 | H16: 4059 | I16: =H16/G16 -> 0.9439534884 | J16: 82 | K16: R901 | L16: =$E$144 -> 17.5 | M16: =$F$144 -> 270 | N16: =$D$144 -> 0.416 | O16: =$G$144 -> 0.375 | P16: 905 | Q16: =P16*$H$144 -> 750.245 | R16: =P16^2*L16/2000 -> 7166.46875 | S16: =Q16^2*L16/2000 -> 4925.09115 | T16: =(G16/F16/I16) -> 5288.250209 | U16: =(P16^2/J16/1000) -> 9.988109756 | V16: 650
A17: 14 | B17: =(T17*U17*L17/10000)*(T17/6000) -> 81.20122068 | C17: .375 Holland & Holland Magnum | D17: 6.188 | E17: 5.059 | F17: =E17/D17 -> 0.817550097 | G17: 4300 | H17: 4189 | I17: =H17/G17 -> 0.9741860465 | J17: 71 | K17: R902 | L17: =$E$146 -> 15.5 | M17: =$F$146 -> 239 | N17: =$D$146 -> 0.375 | O17: =$G$146 -> 0.4 | P17: 875 | Q17: =P17*$H$146 -> 735.875 | R17: =P17^2*L17/2000 -> 5933.59375 | S17: =Q17^2*L17/2000 -> 4196.718121 | T17: =(G17/F17/I17) -> 5398.985691 | U17: =(P17^2/J17/1000) -> 10.7834507 | V17: 627
A18: 15 | B18: =(T18*U18*L18/10000)*(T18/6000) -> 80.24756704 | C18: .338 Winchester Magnum | D18: 5.532 | E18: 4.677 | F18: =E18/D18 -> 0.8454446855 | G18: 4300 | H18: 3876 | I18: =H18/G18 -> 0.9013953488 | J18: 70 | K18: N550 | L18: =$E$149 -> 12.7 | M18: =$F$149 -> 196 | N18: =$D$149 -> 0.338 | O18: =$G$149 -> 0.46 | P18: 913 | Q18: =P18*$H$149 -> 780.615 | R18: =P18^2*L18/2000 -> 5293.16315 | S18: =Q18^2*L18/2000 -> 3869.434592 | T18: =(G18/F18/I18) -> 5642.452923 | U18: =(P18^2/J18/1000) -> 11.90812857 | V18: 650
A19: 16 | B19: =(T19*U19*L19/10000)*(T19/6000) -> 79.93790471 | C19: 10,3x72 Gian-Marchet® | D19: 6.351 | E19: 5.523 | F19: =E19/D19 -> 0.8696268304 | G19: 4300 | H19: 4071 | I19: =H19/G19 -> 0.946744186 | J19: 73 | K19: N130 | L19: =$E$145 -> 16.5 | M19: =$F$145 -> 254 | N19: =$D$145 -> 0.413 | O19: =$G$145 -> 0.345 | P19: 882 | Q19: =P19*$H$145 -> 713.538 | R19: =P19^2*L19/2000 -> 6417.873 | S19: =Q19^2*L19/2000 -> 4200.375939 | T19: =(G19/F19/I19) -> 5222.793781 | U19: =(P19^2/J19/1000) -> 10.65649315 | V19: 685
A20: 17 | B20: =(T20*U20*L20/10000)*(T20/6000) -> 79.41217105 | C20: .416 Remington Magnum | D20: 6.876 | E20: 5.923 | F20: =E20/D20 -> 0.8614019779 | G20: 4300 | H20: 4003 | I20: =H20/G20 -> 0.9309302326 | J20: 83 | K20: R901 | L20: =$E$145 -> 16.5 | M20: =$F$145 -> 254 | N20: =$D$145 -> 0.413 | O20: =$G$145 -> 0.345 | P20: 913 | Q20: =P20*$H$145 -> 738.617 | R20: =P20^2*L20/2000 -> 6876.94425 | S20: =Q20^2*L20/2000 -> 4500.82935 | T20: =(G20/F20/I20) -> 5362.230227 | U20: =(P20^2/J20/1000) -> 10.043 | V20: 650
A21: 18 | B21: =(T21*U21*L21/10000)*(T21/6000) -> 78.80479698 | C21: .308 Winchester | D21: 3.636 | E21: 3.056 | F21: =E21/D21 -> 0.8404840484 | G21: 4150 | H21: 3837 | I21: =H21/G21 -> 0.9245783133 | J21: 43 | K21: R901 | L21: =$E$151 -> 9 | M21: =$F$151 -> 140 | N21: =$D$151 -> 0.308 | O21: =$G$151 -> 0.38 | P21: 890 | Q21: =P21*$H$151 -> 740.48 | R21: =P21^2*L21/2000 -> 3564.45 | S21: =Q21^2*L21/2000 -> 2467.397837 | T21: =(G21/F21/I21) -> 5340.413915 | U21: =(P21^2/J21/1000) -> 18.42093023 | V21: 600
A22: 19 | B22: =(T22*U22*L22/10000)*(T22/6000) -> 78.18003161 | C22: .416 Remington Magnum | D22: 6.876 | E22: 5.923 | F22: =E22/D22 -> 0.8614019779 | G22: 4300 | H22: 4046 | I22: =H22/G22 -> 0.9409302326 | J22: 86 | K22: R902 | L22: =$E$144 -> 17.5 | M22: =$F$144 -> 270 | N22: =$D$144 -> 0.416 | O22: =$G$144 -> 0.375 | P22: 905 | Q22: =P22*$H$144 -> 750.245 | R22: =P22^2*L22/2000 -> 7166.46875 | S22: =Q22^2*L22/2000 -> 4925.09115 | T22: =(G22/F22/I22) -> 5305.241621 | U22: =(P22^2/J22/1000) -> 9.523546512 | V22: 650
A23: 20 | B23: =(T23*U23*L23/10000)*(T23/6000) -> 78.16620686 | C23: 9,3x64 | D23: 5.714 | E23: 4.994 | F23: =E23/D23 -> 0.8739936997 | G23: 4400 | H23: 4195 | I23: =H23/G23 -> 0.9534090909 | J23: 68 | K23: R901 | L23: =$E$147 -> 13 | M23: =$F$147 -> 200 | N23: =$D$147 -> 0.366 | O23: =$G$147 -> 0.4 | P23: 938 | Q23: =P23*$H$147 -> 770.098 | R23: =P23^2*L23/2000 -> 5718.986 | S23: =Q23^2*L23/2000 -> 3854.831042 | T23: =(G23/F23/I23) -> 5280.378886 | U23: =(P23^2/J23/1000) -> 12.93888235 | V23: 650
A24: 21 | B24: =(T24*U24*L24/10000)*(T24/6000) -> 77.9976739 | C24: .375 Ruger | D24: 6.425 | E24: 5.299 | F24: =E24/D24 -> 0.8247470817 | G24: 4400 | H24: 4395 | I24: =H24/G24 -> 0.9988636364 | J24: 73.5 | K24: R902 | L24: =$E$146 -> 15.5 | M24: =$F$146 -> 239 | N24: =$D$146 -> 0.375 | O24: =$G$146 -> 0.4 | P24: 882 | Q24: =P24*$H$146 -> 741.762 | R24: =P24^2*L24/2000 -> 6028.911 | S24: =Q24^2*L24/2000 -> 4264.134201 | T24: =(G24/F24/I24) -> 5341.038224 | U24: =(P24^2/J24/1000) -> 10.584 | V24: 627
A25: 22 | B25: =(T25*U25*L25/10000)*(T25/6000) -> 74.05400582 | C25: 8x68S | D25: 5.584 | E25: 4.783 | F25: =E25/D25 -> 0.8565544413 | G25: 4400 | H25: 4101 | I25: =H25/G25 -> 0.9320454545 | J25: 71 | K25: N550 | L25: =$E$150 -> 11.34 | M25: =$F$150 -> 175 | N25: =$D$150 -> 0.323 | O25: =$G$150 -> 0.44 | P25: 957 | Q25: =P25*$H$150 -> 815.364 | R25: =P25^2*L25/2000 -> 5192.86383 | S25: =Q25^2*L25/2000 -> 3769.520626 | T25: =(G25/F25/I25) -> 5511.383255 | U25: =(P25^2/J25/1000) -> 12.89928169 | V25: 630
A26: 23 | B26: =(T26*U26*L26/10000)*(T26/6000) -> 72.53424305 | C26: .375 Ruger | D26: 6.425 | E26: 5.299 | F26: =E26/D26 -> 0.8247470817 | G26: 4400 | H26: 4394 | I26: =H26/G26 -> 0.9986363636 | J26: 78 | K26: N540 | L26: =$E$146 -> 15.5 | M26: =$F$146 -> 239 | N26: =$D$146 -> 0.375 | O26: =$G$146 -> 0.4 | P26: 876 | Q26: =P26*$H$146 -> 736.716 | R26: =P26^2*L26/2000 -> 5947.164 | S26: =Q26^2*L26/2000 -> 4206.316101 | T26: =(G26/F26/I26) -> 5342.253754 | U26: =(P26^2/J26/1000) -> 9.838153846 | V26: 627
A27: 24 | B27: =(T27*U27*L27/10000)*(T27/6000) -> 70.70669209 | C27: .308 Winchester | D27: 3.636 | E27: 3.056 | F27: =E27/D27 -> 0.8404840484 | G27: 4150 | H27: 4077 | I27: =H27/G27 -> 0.9824096386 | J27: 41.5 | K27: N130 | L27: =$E$151 -> 9 | M27: =$F$151 -> 140 | N27: =$D$151 -> 0.308 | O27: =$G$151 -> 0.38 | P27: 880 | Q27: =P27*$H$151 -> 732.16 | R27: =P27^2*L27/2000 -> 3484.8 | S27: =Q27^2*L27/2000 -> 2412.262195 | T27: =(G27/F27/I27) -> 5026.040764 | U27: =(P27^2/J27/1000) -> 18.66024096 | V27: 600
A28: 25 | B28: =(T28*U28*L28/10000)*(T28/6000) -> 70.58771024 | C28: 10,57 Meteor | D28: 8.311 | E28: 7.355 | F28: =E28/D28 -> 0.8849717242 | G28: 4400 | H28: 4315 | I28: =H28/G28 -> 0.9806818182 | J28: 102 | K28: R902 | L28: =$E$144 -> 17.5 | M28: =$F$144 -> 270 | N28: =$D$144 -> 0.416 | O28: =$G$144 -> 0.375 | P28: 980 | Q28: =P28*$H$144 -> 812.42 | R28: =P28^2*L28/2000 -> 8403.5 | S28: =Q28^2*L28/2000 -> 5775.229744 | T28: =(G28/F28/I28) -> 5069.85056 | U28: =(P28^2/J28/1000) -> 9.415686275 | V28: 685
A29: 25 | B29: =(T29*U29*L29/10000)*(T29/6000) -> 70.28519524 | C29: 10,57 Meteor | D29: 8.311 | E29: 7.355 | F29: =E29/D29 -> 0.8849717242 | G29: 4400 | H29: 4181 | I29: =H29/G29 -> 0.9502272727 | J29: 108 | K29: R907 | L29: =$E$144 -> 17.5 | M29: =$F$144 -> 270 | N29: =$D$144 -> 0.416 | O29: =$G$144 -> 0.375 | P29: 975 | Q29: =P29*$H$144 -> 808.275 | R29: =P29^2*L29/2000 -> 8317.96875 | S29: =Q29^2*L29/2000 -> 5716.449162 | T29: =(G29/F29/I29) -> 5232.337997 | U29: =(P29^2/J29/1000) -> 8.802083333 | V29: 685
A30: 26 | B30: =(T30*U30*L30/10000)*(T30/6000) -> 70.15126083 | C30: 7mm-08 | D30: 3.506 | E30: 2.963 | F30: =E30/D30 -> 0.8451226469 | G30: 4150 | H30: 3958 | I30: =H30/G30 -> 0.9537349398 | J30: 41.5 | K30: R902 | L30: =$E$153 -> 8.3 | M30: =$F$153 -> 128 | N30: =$D$153 -> 0.284 | O30: =$G$153 -> 0.44 | P30: 891 | Q30: =P30*$H$153 -> 760.914 | R30: =P30^2*L30/2000 -> 3294.60615 | S30: =Q30^2*L30/2000 -> 2402.808979 | T30: =(G30/F30/I30) -> 5148.736471 | U30: =(P30^2/J30/1000) -> 19.12966265 | V30: 600
A31: 27 | B31: =(T31*U31*L31/10000)*(T31/6000) -> 68.89078219 | C31: 8x64S | D31: 4.513 | E31: 3.854 | F31: =E31/D31 -> 0.8539773986 | G31: 4050 | H31: 3750 | I31: =H31/G31 -> 0.9259259259 | J31: 52 | K31: R902 | L31: =$E$150 -> 11.34 | M31: =$F$150 -> 175 | N31: =$D$150 -> 0.323 | O31: =$G$150 -> 0.44 | P31: 850 | Q31: =P31*$H$150 -> 724.2 | R31: =P31^2*L31/2000 -> 4096.575 | S31: =Q31^2*L31/2000 -> 2973.720179 | T31: =(G31/F31/I31) -> 5121.915413 | U31: =(P31^2/J31/1000) -> 13.89423077 | V31: 600
A32: 28 | B32: =(T32*U32*L32/10000)*(T32/6000) -> 68.83969908 | C32: .378 Weatherby Magnum | D32: 9.025 | E32: 7.854 | F32: =E32/D32 -> 0.8702493075 | G32: 4400 | H32: 4231 | I32: =H32/G32 -> 0.9615909091 | J32: 109 | K32: N550 | L32: =$E$146 -> 15.5 | M32: =$F$146 -> 239 | N32: =$D$146 -> 0.375 | O32: =$G$146 -> 0.4 | P32: 1025 | Q32: =P32*$H$146 -> 862.025 | R32: =P32^2*L32/2000 -> 8142.34375 | S32: =Q32^2*L32/2000 -> 5758.92503 | T32: =(G32/F32/I32) -> 5257.976507 | U32: =(P32^2/J32/1000) -> 9.638761468 | V32: 685
A33: 29 | B33: =(T33*U33*L33/10000)*(T33/6000) -> 68.82654116 | C33: .300 Weatherby Magnum | D33: 6.486 | E33: 6.046 | F33: =E33/D33 -> 0.9321615788 | G33: 4400 | H33: 3506 | I33: =H33/G33 -> 0.7968181818 | J33: 73.6 | K33: R903 | L33: =$E$151 -> 9 | M33: =$F$151 -> 140 | N33: =$D$151 -> 0.308 | O33: =$G$151 -> 0.38 | P33: 981 | Q33: =P33*$H$151 -> 816.192 | R33: =P33^2*L33/2000 -> 4330.6245 | S33: =Q33^2*L33/2000 -> 2997.762214 | T33: =(G33/F33/I33) -> 5923.825307 | U33: =(P33^2/J33/1000) -> 13.07555707 | V33: 630
A34: 30 | B34: =(T34*U34*L34/10000)*(T34/6000) -> 68.50757517 | C34: .300 WSM | D34: 5.299 | E34: 4.727 | F34: =E34/D34 -> 0.8920551047 | G34: 4300 | H34: 3712 | I34: =H34/G34 -> 0.863255814 | J34: 64.5 | K34: R907 | L34: =$E$151 -> 9 | M34: =$F$151 -> 140 | N34: =$D$151 -> 0.308 | O34: =$G$151 -> 0.38 | P34: 972 | Q34: =P34*$H$151 -> 808.704 | R34: =P34^2*L34/2000 -> 4251.528 | S34: =Q34^2*L34/2000 -> 2943.009718 | T34: =(G34/F34/I34) -> 5583.895227 | U34: =(P34^2/J34/1000) -> 14.64781395 | V34: 650
A35: 31 | B35: =(T35*U35*L35/10000)*(T35/6000) -> 68.18372036 | C35: 7mm-08 | D35: 3.506 | E35: 2.963 | F35: =E35/D35 -> 0.8451226469 | G35: 4150 | H35: 4126 | I35: =H35/G35 -> 0.9942168675 | J35: 40 | K35: R901 | L35: =$E$153 -> 8.3 | M35: =$F$153 -> 128 | N35: =$D$153 -> 0.284 | O35: =$G$153 -> 0.44 | P35: 899 | Q35: =P35*$H$153 -> 767.746 | R35: =P35^2*L35/2000 -> 3354.03415 | S35: =Q35^2*L35/2000 -> 2446.15077 | T35: =(G35/F35/I35) -> 4939.0933 | U35: =(P35^2/J35/1000) -> 20.205025 | V35: 600
A36: 32 | B36: =(T36*U36*L36/10000)*(T36/6000) -> 67.68966147 | C36: .375 Remington Ultra Magnum | D36: 7.597 | E36: 6.498 | F36: =E36/D36 -> 0.8553376333 | G36: 4400 | H36: 4332 | I36: =H36/G36 -> 0.9845454545 | J36: 90.5 | K36: R903 | L36: =$E$146 -> 15.5 | M36: =$F$146 -> 239 | N36: =$D$146 -> 0.375 | O36: =$G$146 -> 0.4 | P36: 932 | Q36: =P36*$H$146 -> 783.812 | R36: =P36^2*L36/2000 -> 6731.836 | S36: =Q36^2*L36/2000 -> 4761.299698 | T36: =(G36/F36/I36) -> 5224.91614 | U36: =(P36^2/J36/1000) -> 9.598055249 | V36: 660
A37: 33 | B37: =(T37*U37*L37/10000)*(T37/6000) -> 67.44520423 | C37: 7mm-08 | D37: 3.506 | E37: 2.963 | F37: =E37/D37 -> 0.8451226469 | G37: 4150 | H37: 4119 | I37: =H37/G37 -> 0.9925301205 | J37: 38 | K37: N130 | L37: =$E$153 -> 8.3 | M37: =$F$153 -> 128 | N37: =$D$153 -> 0.284 | O37: =$G$153 -> 0.44 | P37: 870 | Q37: =P37*$H$153 -> 742.98 | R37: =P37^2*L37/2000 -> 3141.135 | S37: =Q37^2*L37/2000 -> 2290.880014 | T37: =(G37/F37/I37) -> 4947.487 | U37: =(P37^2/J37/1000) -> 19.91842105 | V37: 600
A38: 34 | B38: =(T38*U38*L38/10000)*(T38/6000) -> 67.34377707 | C38: .416 Weatherby Magnum | D38: 9.09 | E38: 8.138 | F38: =E38/D38 -> 0.895269527 | G38: 4400 | H38: 4289 | I38: =H38/G38 -> 0.9747727273 | J38: 109 | K38: R902 | L38: =$E$144 -> 17.5 | M38: =$F$144 -> 270 | N38: =$D$144 -> 0.416 | O38: =$G$144 -> 0.375 | P38: 995 | Q38: =P38*$H$144 -> 824.855 | R38: =P38^2*L38/2000 -> 8662.71875 | S38: =Q38^2*L38/2000 -> 5953.375496 | T38: =(G38/F38/I38) -> 5041.914822 | U38: =(P38^2/J38/1000) -> 9.082798165 | V38: 685
A39: 35 | B39: =(T39*U39*L39/10000)*(T39/6000) -> 67.02214918 | C39: .284 Winchester | D39: 5.324 | E39: 4.751 | F39: =E39/D39 -> 0.8923741548 | G39: 4400 | H39: 4181 | I39: =H39/G39 -> 0.9502272727 | J39: 49 | K39: R902 | L39: =$E$153 -> 8.3 | M39: =$F$153 -> 128 | N39: =$D$153 -> 0.284 | O39: =$G$153 -> 0.44 | P39: 939 | Q39: =P39*$H$153 -> 801.906 | R39: =P39^2*L39/2000 -> 3659.14215 | S39: =Q39^2*L39/2000 -> 2668.670916 | T39: =(G39/F39/I39) -> 5188.934657 | U39: =(P39^2/J39/1000) -> 17.99430612 | V39: 600
A40: 36 | B40: =(T40*U40*L40/10000)*(T40/6000) -> 66.92837555 | C40: .338 Lapua Magnum | D40: 7.337 | E40: 6.686 | F40: =E40/D40 -> 0.9112716369 | G40: 4700 | H40: 4623 | I40: =H40/G40 -> 0.9836170213 | J40: 91 | K40: R907 | L40: =$E$149 -> 12.7 | M40: =$F$149 -> 196 | N40: =$D$149 -> 0.338 | O40: =$G$149 -> 0.46 | P40: 1023 | Q40: =P40*$H$149 -> 874.665 | R40: =P40^2*L40/2000 -> 6645.45915 | S40: =Q40^2*L40/2000 -> 4857.996775 | T40: =(G40/F40/I40) -> 5243.532562 | U40: =(P40^2/J40/1000) -> 11.50031868 | V40: 650
A41: 37 | B41: =(T41*U41*L41/10000)*(T41/6000) -> 66.75538446 | C41: 8x68S | D41: 5.584 | E41: 4.783 | F41: =E41/D41 -> 0.8565544413 | G41: 4400 | H41: 4326 | I41: =H41/G41 -> 0.9831818182 | J41: 68 | K41: R907 | L41: =$E$150 -> 11.34 | M41: =$F$150 -> 175 | N41: =$D$150 -> 0.323 | O41: =$G$150 -> 0.44 | P41: 938 | Q41: =P41*$H$150 -> 799.176 | R41: =P41^2*L41/2000 -> 4988.71548 | S41: =Q41^2*L41/2000 -> 3621.328522 | T41: =(G41/F41/I41) -> 5224.730173 | U41: =(P41^2/J41/1000) -> 12.93888235 | V41: 630
A42: 38 | B42: =(T42*U42*L42/10000)*(T42/6000) -> 66.56471031 | C42: .375 Remington Ultra Magnum | D42: 7.597 | E42: 6.498 | F42: =E42/D42 -> 0.8553376333 | G42: 4400 | H42: 4321 | I42: =H42/G42 -> 0.9820454545 | J42: 95.5 | K42: N550 | L42: =$E$146 -> 15.5 | M42: =$F$146 -> 239 | N42: =$D$146 -> 0.375 | O42: =$G$146 -> 0.4 | P42: 947 | Q42: =P42*$H$146 -> 796.427 | R42: =P42^2*L42/2000 -> 6950.26975 | S42: =Q42^2*L42/2000 -> 4915.793739 | T42: =(G42/F42/I42) -> 5238.217246 | U42: =(P42^2/J42/1000) -> 9.390670157 | V42: 660
A43: 39 | B43: =(T43*U43*L43/10000)*(T43/6000) -> 65.97020179 | C43: .375 Remington Ultra Magnum | D43: 7.597 | E43: 6.498 | F43: =E43/D43 -> 0.8553376333 | G43: 4400 | H43: 4350 | I43: =H43/G43 -> 0.9886363636 | J43: 91.5 | K43: R907 | L43: =$E$146 -> 15.5 | M43: =$F$146 -> 239 | N43: =$D$146 -> 0.375 | O43: =$G$146 -> 0.4 | P43: 929 | Q43: =P43*$H$146 -> 781.289 | R43: =P43^2*L43/2000 -> 6688.56775 | S43: =Q43^2*L43/2000 -> 4730.696887 | T43: =(G43/F43/I43) -> 5203.295797 | U43: =(P43^2/J43/1000) -> 9.432142077 | V43: 660
A44: 40 | B44: =(T44*U44*L44/10000)*(T44/6000) -> 65.95343362 | C44: .338 Lapua Magnum | D44: 7.337 | E44: 6.686 | F44: =E44/D44 -> 0.9112716369 | G44: 4700 | H44: 4692 | I44: =H44/G44 -> 0.9982978723 | J44: 90 | K44: R903 | L44: =$E$149 -> 12.7 | M44: =$F$149 -> 196 | N44: =$D$149 -> 0.338 | O44: =$G$149 -> 0.46 | P44: 1025 | Q44: =P44*$H$149 -> 876.375 | R44: =P44^2*L44/2000 -> 6671.46875 | S44: =Q44^2*L44/2000 -> 4877.010443 | T44: =(G44/F44/I44) -> 5166.421789 | U44: =(P44^2/J44/1000) -> 11.67361111 | V44: 650
A45: 41 | B45: =(T45*U45*L45/10000)*(T45/6000) -> 65.60350556 | C45: 9,3x62 Drückjagd | D45: 5.017 | E45: 4.298 | F45: =E45/D45 -> 0.8566872633 | G45: 3900 | H45: 3649 | I45: =H45/G45 -> 0.9356410256 | J45: 57.5 | K45: N140 | L45: =$E$148 -> 14.5 | M45: =$F$148 -> 224 | N45: =$D$148 -> 0.366 | O45: =$G$148 -> 0.33 | P45: 812 | Q45: =P45*$H$148 -> 665.028 | R45: =P45^2*L45/2000 -> 4780.244 | S45: =Q45^2*L45/2000 -> 3206.401246 | T45: =(G45/F45/I45) -> 4865.562331 | U45: =(P45^2/J45/1000) -> 11.46685217 | V45: 570
A46: 42 | B46: =(T46*U46*L46/10000)*(T46/6000) -> 65.51157895 | C46: .378 Weatherby Magnum | D46: 9.025 | E46: 7.854 | F46: =E46/D46 -> 0.8702493075 | G46: 4400 | H46: 4205 | I46: =H46/G46 -> 0.9556818182 | J46: 106 | K46: R907 | L46: =$E$146 -> 15.5 | M46: =$F$146 -> 239 | N46: =$D$146 -> 0.375 | O46: =$G$146 -> 0.4 | P46: 980 | Q46: =P46*$H$146 -> 824.18 | R46: =P46^2*L46/2000 -> 7443.1 | S46: =Q46^2*L46/2000 -> 5264.363211 | T46: =(G46/F46/I46) -> 5290.487182 | U46: =(P46^2/J46/1000) -> 9.060377358 | V46: 685
A47: 43 | B47: =(T47*U47*L47/10000)*(T47/6000) -> 65.20864157 | C47: .338 Lapua Magnum | D47: 7.337 | E47: 6.686 | F47: =E47/D47 -> 0.9112716369 | G47: 4700 | H47: 4678 | I47: =H47/G47 -> 0.9953191489 | J47: 95 | K47: N550 | L47: =$E$149 -> 12.7 | M47: =$F$149 -> 196 | N47: =$D$149 -> 0.338 | O47: =$G$149 -> 0.46 | P47: 1044 | Q47: =P47*$H$149 -> 892.62 | R47: =P47^2*L47/2000 -> 6921.0936 | S47: =Q47^2*L47/2000 -> 5059.492449 | T47: =(G47/F47/I47) -> 5181.883504 | U47: =(P47^2/J47/1000) -> 11.47301053 | V47: 650
A48: 44 | B48: =(T48*U48*L48/10000)*(T48/6000) -> 65.06028404 | C48: 9,3x62 | D48: 5.017 | E48: 4.298 | F48: =E48/D48 -> 0.8566872633 | G48: 3900 | H48: 3588 | I48: =H48/G48 -> 0.92 | J48: 55.5 | K48: N130 | L48: =$E$147 -> 13 | M48: =$F$147 -> 200 | N48: =$D$147 -> 0.366 | O48: =$G$147 -> 0.4 | P48: 825 | Q48: =P48*$H$147 -> 677.325 | R48: =P48^2*L48/2000 -> 4424.0625 | S48: =Q48^2*L48/2000 -> 2981.999512 | T48: =(G48/F48/I48) -> 4948.282315 | U48: =(P48^2/J48/1000) -> 12.26351351 | V48: 570
A49: 45 | B49: =(T49*U49*L49/10000)*(T49/6000) -> 64.91533294 | C49: 8x64S | D49: 4.513 | E49: 3.854 | F49: =E49/D49 -> 0.8539773986 | G49: 4050 | H49: 3822 | I49: =H49/G49 -> 0.9437037037 | J49: 53 | K49: N140 | L49: =$E$150 -> 11.34 | M49: =$F$150 -> 175 | N49: =$D$150 -> 0.323 | O49: =$G$150 -> 0.44 | P49: 849 | Q49: =P49*$H$150 -> 723.348 | R49: =P49^2*L49/2000 -> 4086.94167 | S49: =Q49^2*L49/2000 -> 2966.727306 | T49: =(G49/F49/I49) -> 5025.42721 | U49: =(P49^2/J49/1000) -> 13.60001887 | V49: 600
A50: 46 | B50: =(T50*U50*L50/10000)*(T50/6000) -> 64.13488073 | C50: .338 Winchester Magnum | D50: 5.532 | E50: 4.957 | F50: =E50/D50 -> 0.8960592914 | G50: 4300 | H50: 4295 | I50: =H50/G50 -> 0.9988372093 | J50: 63.5 | K50: R907 | L50: =$E$149 -> 12.7 | M50: =$F$149 -> 196 | N50: =$D$149 -> 0.338 | O50: =$G$149 -> 0.46 | P50: 913 | Q50: =P50*$H$149 -> 780.615 | R50: =P50^2*L50/2000 -> 5293.16315 | S50: =Q50^2*L50/2000 -> 3869.434592 | T50: =(G50/F50/I50) -> 4804.376074 | U50: =(P50^2/J50/1000) -> 13.12707087 | V50: 650
A51: 47 | B51: =(T51*U51*L51/10000)*(T51/6000) -> 63.55334312 | C51: 9,3x62 | D51: 5.017 | E51: 4.298 | F51: =E51/D51 -> 0.8566872633 | G51: 3900 | H51: 3649 | I51: =H51/G51 -> 0.9356410256 | J51: 59 | K51: R901 | L51: =$E$147 -> 13 | M51: =$F$147 -> 200 | N51: =$D$147 -> 0.366 | O51: =$G$147 -> 0.4 | P51: 855 | Q51: =P51*$H$147 -> 701.955 | R51: =P51^2*L51/2000 -> 4751.6625 | S51: =Q51^2*L51/2000 -> 3202.815343 | T51: =(G51/F51/I51) -> 4865.562331 | U51: =(P51^2/J51/1000) -> 12.39025424 | V51: 570
A52: 48 | B52: =(T52*U52*L52/10000)*(T52/6000) -> 63.02281266 | C52: .338 Winchester Magnum | D52: 5.532 | E52: 4.957 | F52: =E52/D52 -> 0.8960592914 | G52: 4300 | H52: 4309 | I52: =H52/G52 -> 1.002093023 | J52: 63.5 | K52: R902 | L52: =$E$149 -> 12.7 | M52: =$F$149 -> 196 | N52: =$D$149 -> 0.338 | O52: =$G$149 -> 0.46 | P52: 908 | Q52: =P52*$H$149 -> 776.34 | R52: =P52^2*L52/2000 -> 5235.3464 | S52: =Q52^2*L52/2000 -> 3827.169102 | T52: =(G52/F52/I52) -> 4788.766591 | U52: =(P52^2/J52/1000) -> 12.98368504 | V52: 650
A53: 49 | B53: =(T53*U53*L53/10000)*(T53/6000) -> 62.44204664 | C53: 8x57IS | D53: 4.091 | E53: 3.602 | F53: =E53/D53 -> 0.8804693229 | G53: 3900 | H53: 3537 | I53: =H53/G53 -> 0.9069230769 | J53: 49.5 | K53: N140 | L53: =$E$150 -> 11.34 | M53: =$F$150 -> 175 | N53: =$D$150 -> 0.323 | O53: =$G$150 -> 0.44 | P53: 828 | Q53: =P53*$H$150 -> 705.456 | R53: =P53^2*L53/2000 -> 3887.26128 | S53: =Q53^2*L53/2000 -> 2821.778512 | T53: =(G53/F53/I53) -> 4884.04802 | U53: =(P53^2/J53/1000) -> 13.85018182 | V53: 630
A54: 50 | B54: =(T54*U54*L54/10000)*(T54/6000) -> 62.20563961 | C54: 9,3x62 | D54: 5.017 | E54: 4.298 | F54: =E54/D54 -> 0.8566872633 | G54: 3900 | H54: 3630 | I54: =H54/G54 -> 0.9307692308 | J54: 62.2 | K54: R902 | L54: =$E$147 -> 13 | M54: =$F$147 -> 200 | N54: =$D$147 -> 0.366 | O54: =$G$147 -> 0.4 | P54: 864 | Q54: =P54*$H$147 -> 709.344 | R54: =P54^2*L54/2000 -> 4852.224 | S54: =Q54^2*L54/2000 -> 3270.597917 | T54: =(G54/F54/I54) -> 4891.029462 | U54: =(P54^2/J54/1000) -> 12.00154341 | V54: 570
A55: 51 | B55: =(T55*U55*L55/10000)*(T55/6000) -> 61.35203463 | C55: 7x64 | D55: 4.48 | E55: 3.891 | F55: =E55/D55 -> 0.8685267857 | G55: 4150 | H55: 3947 | I55: =H55/G55 -> 0.9510843373 | J55: 50.5 | K55: H335 | L55: =$E$153 -> 8.3 | M55: =$F$153 -> 128 | N55: =$D$153 -> 0.284 | O55: =$G$153 -> 0.44 | P55: 942 | Q55: =P55*$H$153 -> 804.468 | R55: =P55^2*L55/2000 -> 3682.5606 | S55: =Q55^2*L55/2000 -> 2685.750367 | T55: =(G55/F55/I55) -> 5023.956267 | U55: =(P55^2/J55/1000) -> 17.57156436 | V55: 630
A56: 52 | B56: =(T56*U56*L56/10000)*(T56/6000) -> 61.05813828 | C56: 7x64 | D56: 4.48 | E56: 3.891 | F56: =E56/D56 -> 0.8685267857 | G56: 4150 | H56: 3972 | I56: =H56/G56 -> 0.9571084337 | J56: 50 | K56: R902 | L56: =$E$153 -> 8.3 | M56: =$F$153 -> 128 | N56: =$D$153 -> 0.284 | O56: =$G$153 -> 0.44 | P56: 941 | Q56: =P56*$H$153 -> 803.614 | R56: =P56^2*L56/2000 -> 3674.74615 | S56: =Q56^2*L56/2000 -> 2680.051163 | T56: =(G56/F56/I56) -> 4992.335192 | U56: =(P56^2/J56/1000) -> 17.70962 | V56: 630
A57: 53 | B57: =(T57*U57*L57/10000)*(T57/6000) -> 60.85050588 | C57: .260 Remington | D57: 3.474 | E57: 2.986 | F57: =E57/D57 -> 0.8595279217 | G57: 4150 | H57: 4102 | I57: =H57/G57 -> 0.9884337349 | J57: 40 | K57: R902 | L57: =$E$155 -> 7.2 | M57: =$F$155 -> 116 | N57: =$D$155 -> 0.264 | O57: =$G$155 -> 0.46 | P57: 922 | Q57: =P57*$H$155 -> 792.92 | R57: =P57^2*L57/2000 -> 3060.3024 | S57: =Q57^2*L57/2000 -> 2263.399655 | T57: =(G57/F57/I57) -> 4884.729828 | U57: =(P57^2/J57/1000) -> 21.2521 | V57: 600
A58: 54 | B58: =(T58*U58*L58/10000)*(T58/6000) -> 60.77557502 | C58: 10,3x74R | D58: 5.909 | E58: 5.132 | F58: =E58/D58 -> 0.8685056693 | G58: 3500 | H58: 3024 | I58: =H58/G58 -> 0.864 | J58: 67 | K58: R901 | L58: =$E$145 -> 16.5 | M58: =$F$145 -> 254 | N58: =$D$145 -> 0.413 | O58: =$G$145 -> 0.345 | P58: 825 | Q58: =P58*$H$145 -> 667.425 | R58: =P58^2*L58/2000 -> 5615.15625 | S58: =Q58^2*L58/2000 -> 3675.013078 | T58: =(G58/F58/I58) -> 4664.248109 | U58: =(P58^2/J58/1000) -> 10.15858209 | V58: 650
A59: 55 | B59: =(T59*U59*L59/10000)*(T59/6000) -> 60.39921576 | C59: 7x64 | D59: 4.48 | E59: 3.891 | F59: =E59/D59 -> 0.8685267857 | G59: 4150 | H59: 3910 | I59: =H59/G59 -> 0.9421686747 | J59: 53.5 | K59: R903 | L59: =$E$153 -> 8.3 | M59: =$F$153 -> 128 | N59: =$D$153 -> 0.284 | O59: =$G$153 -> 0.44 | P59: 953 | Q59: =P59*$H$153 -> 813.862 | R59: =P59^2*L59/2000 -> 3769.06735 | S59: =Q59^2*L59/2000 -> 2748.841123 | T59: =(G59/F59/I59) -> 5071.497541 | U59: =(P59^2/J59/1000) -> 16.97586916 | V59: 630
A60: 56 | B60: =(T60*U60*L60/10000)*(T60/6000) -> 60.04070305 | C60: .260 Remington | D60: 3.474 | E60: 2.986 | F60: =E60/D60 -> 0.8595279217 | G60: 4150 | H60: 4104 | I60: =H60/G60 -> 0.9889156627 | J60: 40.5 | K60: IMR4064 | L60: =$E$155 -> 7.2 | M60: =$F$155 -> 116 | N60: =$D$155 -> 0.264 | O60: =$G$155 -> 0.46 | P60: 922 | Q60: =P60*$H$155 -> 792.92 | R60: =P60^2*L60/2000 -> 3060.3024 | S60: =Q60^2*L60/2000 -> 2263.399655 | T60: =(G60/F60/I60) -> 4882.349355 | U60: =(P60^2/J60/1000) -> 20.9897284 | V60: 600
A61: 57 | B61: =(T61*U61*L61/10000)*(T61/6000) -> 59.73208993 | C61: 8x57IS | D61: 4.091 | E61: 3.602 | F61: =E61/D61 -> 0.8804693229 | G61: 3900 | H61: 3749 | I61: =H61/G61 -> 0.9612820513 | J61: 50.5 | K61: IMR4895 | L61: =$E$150 -> 11.34 | M61: =$F$150 -> 175 | N61: =$D$150 -> 0.323 | O61: =$G$150 -> 0.44 | P61: 867 | Q61: =P61*$H$150 -> 738.684 | R61: =P61^2*L61/2000 -> 4262.07663 | S61: =Q61^2*L61/2000 -> 3093.858474 | T61: =(G61/F61/I61) -> 4607.862856 | U61: =(P61^2/J61/1000) -> 14.88493069 | V61: 630
A62: 58 | B62: =(T62*U62*L62/10000)*(T62/6000) -> 59.73086857 | C62: 7x64 | D62: 4.48 | E62: 3.891 | F62: =E62/D62 -> 0.8685267857 | G62: 4150 | H62: 3945 | I62: =H62/G62 -> 0.9506024096 | J62: 50.5 | K62: N140 | L62: =$E$153 -> 8.3 | M62: =$F$153 -> 128 | N62: =$D$153 -> 0.284 | O62: =$G$153 -> 0.44 | P62: 929 | Q62: =P62*$H$153 -> 793.366 | R62: =P62^2*L62/2000 -> 3581.62015 | S62: =Q62^2*L62/2000 -> 2612.132881 | T62: =(G62/F62/I62) -> 5026.503266 | U62: =(P62^2/J62/1000) -> 17.08992079 | V62: 630
A63: 59 | B63: =(T63*U63*L63/10000)*(T63/6000) -> 59.21266689 | C63: 7mm STW | D63: 6.363 | E63: 5.8 | F63: =E63/D63 -> 0.9115197234 | G63: 4600 | H63: 4173 | I63: =H63/G63 -> 0.907173913 | J63: 82 | K63: R905 | L63: =$E$153 -> 8.3 | M63: =$F$153 -> 128 | N63: =$D$153 -> 0.284 | O63: =$G$153 -> 0.44 | P63: 1065 | Q63: =P63*$H$153 -> 909.51 | R63: =P63^2*L63/2000 -> 4707.03375 | S63: =Q63^2*L63/2000 -> 3432.915026 | T63: =(G63/F63/I63) -> 5562.899427 | U63: =(P63^2/J63/1000) -> 13.8320122 | V63: 650
A64: 60 | B64: =(T64*U64*L64/10000)*(T64/6000) -> 58.81682904 | C64: 8x57IS | D64: 4.091 | E64: 3.602 | F64: =E64/D64 -> 0.8804693229 | G64: 3900 | H64: 3862 | I64: =H64/G64 -> 0.9902564103 | J64: 47 | K64: H322 | L64: =$E$150 -> 11.34 | M64: =$F$150 -> 175 | N64: =$D$150 -> 0.323 | O64: =$G$150 -> 0.44 | P64: 855 | Q64: =P64*$H$150 -> 728.46 | R64: =P64^2*L64/2000 -> 4144.91175 | S64: =Q64^2*L64/2000 -> 3008.808019 | T64: =(G64/F64/I64) -> 4473.039318 | U64: =(P64^2/J64/1000) -> 15.5537234 | V64: 630
A65: 61 | B65: =(T65*U65*L65/10000)*(T65/6000) -> 58.7348895 | C65: 8x57IS | D65: 4.091 | E65: 3.602 | F65: =E65/D65 -> 0.8804693229 | G65: 3900 | H65: 3785 | I65: =H65/G65 -> 0.9705128205 | J65: 49 | K65: R902 | L65: =$E$150 -> 11.34 | M65: =$F$150 -> 175 | N65: =$D$150 -> 0.323 | O65: =$G$150 -> 0.44 | P65: 855 | Q65: =P65*$H$150 -> 728.46 | R65: =P65^2*L65/2000 -> 4144.91175 | S65: =Q65^2*L65/2000 -> 3008.808019 | T65: =(G65/F65/I65) -> 4564.036419 | U65: =(P65^2/J65/1000) -> 14.91887755 | V65: 630
A66: 62 | B66: =(T66*U66*L66/10000)*(T66/6000) -> 58.50666337 | C66: 9,3x62 | D66: 5.017 | E66: 4.298 | F66: =E66/D66 -> 0.8566872633 | G66: 3900 | H66: 3730 | I66: =H66/G66 -> 0.9564102564 | J66: 58.5 | K66: N133 | L66: =$E$147 -> 13 | M66: =$F$147 -> 200 | N66: =$D$147 -> 0.366 | O66: =$G$147 -> 0.4 | P66: 835 | Q66: =P66*$H$147 -> 685.535 | R66: =P66^2*L66/2000 -> 4531.9625 | S66: =Q66^2*L66/2000 -> 3054.728535 | T66: =(G66/F66/I66) -> 4759.902667 | U66: =(P66^2/J66/1000) -> 11.91837607 | V66: 570
A67: 63 | B67: =(T67*U67*L67/10000)*(T67/6000) -> 57.91896191 | C67: 7,5x55 | D67: 4.402 | E67: 3.855 | F67: =E67/D67 -> 0.8757383008 | G67: 3800 | H67: 3509 | I67: =H67/G67 -> 0.9234210526 | J67: 51 | K67: R902 | L67: =$E$152 -> 9.8 | M67: =$F$152 -> 142 | N67: =$D$152 -> 0.307 | O67: =$G$152 -> 0.42 | P67: 905 | Q67: =P67*$H$152 -> 762.915 | R67: =P67^2*L67/2000 -> 4013.2225 | S67: =Q67^2*L67/2000 -> 2851.992556 | T67: =(G67/F67/I67) -> 4699.043667 | U67: =(P67^2/J67/1000) -> 16.05931373 | V67: 620
A68: 64 | B68: =(T68*U68*L68/10000)*(T68/6000) -> 57.77509949 | C68: .300 WSM | D68: 5.299 | E68: 4.727 | F68: =E68/D68 -> 0.8920551047 | G68: 4300 | H68: 4267 | I68: =H68/G68 -> 0.9923255814 | J68: 62 | K68: R902 | L68: =$E$151 -> 9 | M68: =$F$151 -> 140 | N68: =$D$151 -> 0.308 | O68: =$G$151 -> 0.38 | P68: 1006 | Q68: =P68*$H$151 -> 836.992 | R68: =P68^2*L68/2000 -> 4554.162 | S68: =Q68^2*L68/2000 -> 3152.500236 | T68: =(G68/F68/I68) -> 4857.609347 | U68: =(P68^2/J68/1000) -> 16.32316129 | V68: 650
A69: 65 | B69: =(T69*U69*L69/10000)*(T69/6000) -> 57.3474132 | C69: 7mm WSM | D69: 5.001 | E69: 4.471 | F69: =E69/D69 -> 0.8940211958 | G69: 4450 | H69: 4343 | I69: =H69/G69 -> 0.9759550562 | J69: 63.5 | K69: N550 | L69: =$E$153 -> 8.3 | M69: =$F$153 -> 128 | N69: =$D$153 -> 0.284 | O69: =$G$153 -> 0.44 | P69: 1006 | Q69: =P69*$H$153 -> 859.124 | R69: =P69^2*L69/2000 -> 4199.9494 | S69: =Q69^2*L69/2000 -> 3063.090297 | T69: =(G69/F69/I69) -> 5100.143283 | U69: =(P69^2/J69/1000) -> 15.9375748 | V69: 600
A70: 66 | B70: =(T70*U70*L70/10000)*(T70/6000) -> 56.67921896 | C70: .260 Remington | D70: 3.474 | E70: 2.986 | F70: =E70/D70 -> 0.8595279217 | G70: 4150 | H70: 4101 | I70: =H70/G70 -> 0.9881927711 | J70: 42.5 | K70: N540 | L70: =$E$155 -> 7.2 | M70: =$F$155 -> 116 | N70: =$D$155 -> 0.264 | O70: =$G$155 -> 0.46 | P70: 917 | Q70: =P70*$H$155 -> 788.62 | R70: =P70^2*L70/2000 -> 3027.2004 | S70: =Q70^2*L70/2000 -> 2238.917416 | T70: =(G70/F70/I70) -> 4885.920935 | U70: =(P70^2/J70/1000) -> 19.78562353 | V70: 600
A71: 67 | B71: =(T71*U71*L71/10000)*(T71/6000) -> 56.62902638 | C71: 7mm WSM | D71: 5.001 | E71: 4.471 | F71: =E71/D71 -> 0.8940211958 | G71: 4450 | H71: 4433 | I71: =H71/G71 -> 0.9961797753 | J71: 60.5 | K71: R903 | L71: =$E$153 -> 8.3 | M71: =$F$153 -> 128 | N71: =$D$153 -> 0.284 | O71: =$G$153 -> 0.44 | P71: 996 | Q71: =P71*$H$153 -> 850.584 | R71: =P71^2*L71/2000 -> 4116.8664 | S71: =Q71^2*L71/2000 -> 3002.496535 | T71: =(G71/F71/I71) -> 4996.598754 | U71: =(P71^2/J71/1000) -> 16.39695868 | V71: 600
A72: 68 | B72: =(T72*U72*L72/10000)*(T72/6000) -> 56.27589776 | C72: 7mm Remington Magnum | D72: 5.324 | E72: 4.751 | F72: =E72/D72 -> 0.8923741548 | G72: 4300 | H72: 4101 | I72: =H72/G72 -> 0.9537209302 | J72: 61.5 | K72: R903 | L72: =$E$153 -> 8.3 | M72: =$F$153 -> 128 | N72: =$D$153 -> 0.284 | O72: =$G$153 -> 0.44 | P72: 990 | Q72: =P72*$H$153 -> 845.46 | R72: =P72^2*L72/2000 -> 4067.415 | S72: =Q72^2*L72/2000 -> 2966.430838 | T72: =(G72/F72/I72) -> 5052.42829 | U72: =(P72^2/J72/1000) -> 15.93658537 | V72: 630
A73: 69 | B73: =(T73*U73*L73/10000)*(T73/6000) -> 55.9711669 | C73: 8x57IS | D73: 4.091 | E73: 3.602 | F73: =E73/D73 -> 0.8804693229 | G73: 3900 | H73: 3866 | I73: =H73/G73 -> 0.9912820513 | J73: 47.8 | K73: Benchmark | L73: =$E$150 -> 11.34 | M73: =$F$150 -> 175 | N73: =$D$150 -> 0.323 | O73: =$G$150 -> 0.44 | P73: 842 | Q73: =P73*$H$150 -> 717.384 | R73: =P73^2*L73/2000 -> 4019.82588 | S73: =Q73^2*L73/2000 -> 2918.007686 | T73: =(G73/F73/I73) -> 4468.411238 | U73: =(P73^2/J73/1000) -> 14.83188285 | V73: 630
A74: 70 | B74: =(T74*U74*L74/10000)*(T74/6000) -> 55.87144542 | C74: 8x57IS | D74: 4.091 | E74: 3.602 | F74: =E74/D74 -> 0.8804693229 | G74: 3900 | H74: 3778 | I74: =H74/G74 -> 0.9687179487 | J74: 50.5 | K74: N140 | L74: =$E$150 -> 11.34 | M74: =$F$150 -> 175 | N74: =$D$150 -> 0.323 | O74: =$G$150 -> 0.44 | P74: 845 | Q74: =P74*$H$150 -> 719.94 | R74: =P74^2*L74/2000 -> 4048.52175 | S74: =Q74^2*L74/2000 -> 2938.838132 | T74: =(G74/F74/I74) -> 4572.492813 | U74: =(P74^2/J74/1000) -> 14.13910891 | V74: 630
A75: 71 | B75: =(T75*U75*L75/10000)*(T75/6000) -> 55.58110684 | C75: 8mm Remington Magnum | D75: 6.425 | E75: 5.95 | F75: =E75/D75 -> 0.9260700389 | G75: 4400 | H75: 4315 | I75: =H75/G75 -> 0.9806818182 | J75: 76.5 | K75: R907 | L75: =$E$150 -> 11.34 | M75: =$F$150 -> 175 | N75: =$D$150 -> 0.323 | O75: =$G$150 -> 0.44 | P75: 979 | Q75: =P75*$H$150 -> 834.108 | R75: =P75^2*L75/2000 -> 5434.36047 | S75: =Q75^2*L75/2000 -> 3944.824003 | T75: =(G75/F75/I75) -> 4844.85428 | U75: =(P75^2/J75/1000) -> 12.52864052 | V75: 670
A76: 72 | B76: =(T76*U76*L76/10000)*(T76/6000) -> 55.1747025 | C76: 8x57IS | D76: 4.091 | E76: 3.602 | F76: =E76/D76 -> 0.8804693229 | G76: 3900 | H76: 3875 | I76: =H76/G76 -> 0.9935897436 | J76: 50 | K76: Norma 201 | L76: =$E$150 -> 11.34 | M76: =$F$150 -> 175 | N76: =$D$150 -> 0.323 | O76: =$G$150 -> 0.44 | P76: 857 | Q76: =P76*$H$150 -> 730.164 | R76: =P76^2*L76/2000 -> 4164.32583 | S76: =Q76^2*L76/2000 -> 3022.900777 | T76: =(G76/F76/I76) -> 4458.032992 | U76: =(P76^2/J76/1000) -> 14.68898 | V76: 630
A77: 73 | B77: =(T77*U77*L77/10000)*(T77/6000) -> 55.14665363 | C77: .270 Winchester | D77: 4.383 | E77: 3.946 | F77: =E77/D77 -> 0.9002966005 | G77: 4300 | H77: 4085 | I77: =H77/G77 -> 0.95 | J77: 54 | K77: R904 | L77: =$E$154 -> 8 | M77: =$F$154 -> 123 | N77: =$D$154 -> 0.277 | O77: =$G$154 -> 0.44 | P77: 940 | Q77: =P77*$H$154 -> 803.7 | R77: =P77^2*L77/2000 -> 3534.4 | S77: =Q77^2*L77/2000 -> 2583.73476 | T77: =(G77/F77/I77) -> 5027.582895 | U77: =(P77^2/J77/1000) -> 16.36296296 | V77: 600
A78: 74 | B78: =(T78*U78*L78/10000)*(T78/6000) -> 55.08005663 | C78: .300 WSM | D78: 5.299 | E78: 4.727 | F78: =E78/D78 -> 0.8920551047 | G78: 4300 | H78: 4269 | I78: =H78/G78 -> 0.9927906977 | J78: 64.2 | K78: N150 | L78: =$E$151 -> 9 | M78: =$F$151 -> 140 | N78: =$D$151 -> 0.308 | O78: =$G$151 -> 0.38 | P78: 1000 | Q78: =P78*$H$151 -> 832 | R78: =P78^2*L78/2000 -> 4500 | S78: =Q78^2*L78/2000 -> 3115.008 | T78: =(G78/F78/I78) -> 4855.333587 | U78: =(P78^2/J78/1000) -> 15.57632399 | V78: 650
A79: 75 | B79: =(T79*U79*L79/10000)*(T79/6000) -> 54.83291991 | C79: 6,5x64 Brenneke | D79: 4.35 | E79: 3.864 | F79: =E79/D79 -> 0.8882758621 | G79: 4300 | H79: 4210 | I79: =H79/G79 -> 0.9790697674 | J79: 53.5 | K79: IMR4350 | L79: =$E$155 -> 7.2 | M79: =$F$155 -> 116 | N79: =$D$155 -> 0.264 | O79: =$G$155 -> 0.46 | P79: 1000 | Q79: =P79*$H$155 -> 860 | R79: =P79^2*L79/2000 -> 3600 | S79: =Q79^2*L79/2000 -> 2662.56 | T79: =(G79/F79/I79) -> 4944.324368 | U79: =(P79^2/J79/1000) -> 18.69158879 | V79: 650
A80: 76 | B80: =(T80*U80*L80/10000)*(T80/6000) -> 54.26416195 | C80: 7x64 | D80: 4.48 | E80: 3.891 | F80: =E80/D80 -> 0.8685267857 | G80: 4150 | H80: 4160 | I80: =H80/G80 -> 1.002409639 | J80: 54.5 | K80: R903 | L80: =$E$153 -> 8.3 | M80: =$F$153 -> 128 | N80: =$D$153 -> 0.284 | O80: =$G$153 -> 0.44 | P80: 970 | Q80: =P80*$H$153 -> 828.38 | R80: =P80^2*L80/2000 -> 3904.735 | S80: =Q80^2*L80/2000 -> 2847.785711 | T80: =(G80/F80/I80) -> 4766.720044 | U80: =(P80^2/J80/1000) -> 17.26422018 | V80: 630
A81: 77 | B81: =(T81*U81*L81/10000)*(T81/6000) -> 54.12263106 | C81: 6,5x64 Brenneke | D81: 4.35 | E81: 3.864 | F81: =E81/D81 -> 0.8882758621 | G81: 4300 | H81: 4201 | I81: =H81/G81 -> 0.9769767442 | J81: 54 | K81: N550 | L81: =$E$155 -> 7.2 | M81: =$F$155 -> 116 | N81: =$D$155 -> 0.264 | O81: =$G$155 -> 0.46 | P81: 996 | Q81: =P81*$H$155 -> 856.56 | R81: =P81^2*L81/2000 -> 3571.2576 | S81: =Q81^2*L81/2000 -> 2641.302121 | T81: =(G81/F81/I81) -> 4954.916827 | U81: =(P81^2/J81/1000) -> 18.37066667 | V81: 650
A82: 78 | B82: =(T82*U82*L82/10000)*(T82/6000) -> 53.52683507 | C82: .300 Winchester Magnum | D82: 5.791 | E82: 5.212 | F82: =E82/D82 -> 0.9000172682 | G82: 4300 | H82: 4289 | I82: =H82/G82 -> 0.9974418605 | J82: 66.5 | K82: R902 | L82: =$E$151 -> 9 | M82: =$F$151 -> 140 | N82: =$D$151 -> 0.308 | O82: =$G$151 -> 0.38 | P82: 1017 | Q82: =P82*$H$151 -> 846.144 | R82: =P82^2*L82/2000 -> 4654.3005 | S82: =Q82^2*L82/2000 -> 3221.818509 | T82: =(G82/F82/I82) -> 4789.939442 | U82: =(P82^2/J82/1000) -> 15.55321805 | V82: 650
A83: 79 | B83: =(T83*U83*L83/10000)*(T83/6000) -> 53.42484458 | C83: 6,5x64 Brenneke | D83: 4.35 | E83: 3.864 | F83: =E83/D83 -> 0.8882758621 | G83: 4300 | H83: 4244 | I83: =H83/G83 -> 0.9869767442 | J83: 52 | K83: R907 | L83: =$E$155 -> 7.2 | M83: =$F$155 -> 116 | N83: =$D$155 -> 0.264 | O83: =$G$155 -> 0.46 | P83: 981 | Q83: =P83*$H$155 -> 843.66 | R83: =P83^2*L83/2000 -> 3464.4996 | S83: =Q83^2*L83/2000 -> 2562.343904 | T83: =(G83/F83/I83) -> 4904.713853 | U83: =(P83^2/J83/1000) -> 18.50694231 | V83: 650
A84: 80 | B84: =(T84*U84*L84/10000)*(T84/6000) -> 52.71767424 | C84: 7mm Weatherby Magnum | D84: 5.681 | E84: 5.117 | F84: =E84/D84 -> 0.9007217039 | G84: 4400 | H84: 4360 | I84: =H84/G84 -> 0.9909090909 | J84: 67 | K84: R907 | L84: =$E$153 -> 8.3 | M84: =$F$153 -> 128 | N84: =$D$153 -> 0.284 | O84: =$G$153 -> 0.44 | P84: 1025 | Q84: =P84*$H$153 -> 875.35 | R84: =P84^2*L84/2000 -> 4360.09375 | S84: =Q84^2*L84/2000 -> 3179.886133 | T84: =(G84/F84/I84) -> 4929.787917 | U84: =(P84^2/J84/1000) -> 15.68097015 | V84: 650
A85: 81 | B85: =(T85*U85*L85/10000)*(T85/6000) -> 52.39840316 | C85: .300 Winchester Magnum | D85: 5.791 | E85: 5.212 | F85: =E85/D85 -> 0.9000172682 | G85: 4300 | H85: 4271 | I85: =H85/G85 -> 0.993255814 | J85: 66.5 | K85: N140 | L85: =$E$151 -> 9 | M85: =$F$151 -> 140 | N85: =$D$151 -> 0.308 | O85: =$G$151 -> 0.38 | P85: 1002 | Q85: =P85*$H$151 -> 833.664 | R85: =P85^2*L85/2000 -> 4518.018 | S85: =Q85^2*L85/2000 -> 3127.480492 | T85: =(G85/F85/I85) -> 4810.126497 | U85: =(P85^2/J85/1000) -> 15.09780451 | V85: 650
A86: 82 | B86: =(T86*U86*L86/10000)*(T86/6000) -> 52.228121 | C86: 7x57 | D86: 3.831 | E86: 3.387 | F86: =E86/D86 -> 0.8841033673 | G86: 3900 | H86: 3769 | I86: =H86/G86 -> 0.9664102564 | J86: 44.7 | K86: R902 | L86: =$E$153 -> 8.3 | M86: =$F$153 -> 128 | N86: =$D$153 -> 0.284 | O86: =$G$153 -> 0.44 | P86: 900 | Q86: =P86*$H$153 -> 768.6 | R86: =P86^2*L86/2000 -> 3361.5 | S86: =Q86^2*L86/2000 -> 2451.595734 | T86: =(G86/F86/I86) -> 4564.571685 | U86: =(P86^2/J86/1000) -> 18.12080537 | V86: 600
A87: 83 | B87: =(T87*U87*L87/10000)*(T87/6000) -> 51.46192965 | C87: .30-06 Springfield | D87: 4.383 | E87: 3.946 | F87: =E87/D87 -> 0.9002966005 | G87: 4050 | H87: 3910 | I87: =H87/G87 -> 0.9654320988 | J87: 54.5 | K87: N140 | L87: =$E$151 -> 9 | M87: =$F$151 -> 140 | N87: =$D$151 -> 0.308 | O87: =$G$151 -> 0.38 | P87: 928 | Q87: =P87*$H$151 -> 772.096 | R87: =P87^2*L87/2000 -> 3875.328 | S87: =Q87^2*L87/2000 -> 2682.595049 | T87: =(G87/F87/I87) -> 4659.589723 | U87: =(P87^2/J87/1000) -> 15.80154128 | V87: 600
A88: 84 | B88: =(T88*U88*L88/10000)*(T88/6000) -> 51.24644141 | C88: .30-06 Springfield | D88: 4.383 | E88: 3.946 | F88: =E88/D88 -> 0.9002966005 | G88: 4050 | H88: 3955 | I88: =H88/G88 -> 0.9765432099 | J88: 55 | K88: N150 | L88: =$E$151 -> 9 | M88: =$F$151 -> 140 | N88: =$D$151 -> 0.308 | O88: =$G$151 -> 0.38 | P88: 941 | Q88: =P88*$H$151 -> 782.912 | R88: =P88^2*L88/2000 -> 3984.6645 | S88: =Q88^2*L88/2000 -> 2758.280399 | T88: =(G88/F88/I88) -> 4606.5729 | U88: =(P88^2/J88/1000) -> 16.09965455 | V88: 600
A89: 85 | B89: =(T89*U89*L89/10000)*(T89/6000) -> 50.98222702 | C89: 9,3x74R | D89: 5.389 | E89: 4.669 | F89: =E89/D89 -> 0.8663945073 | G89: 3400 | H89: 2958 | I89: =H89/G89 -> 0.87 | J89: 60 | K89: R902 | L89: =$E$147 -> 13 | M89: =$F$147 -> 200 | N89: =$D$147 -> 0.366 | O89: =$G$147 -> 0.4 | P89: 833 | Q89: =P89*$H$147 -> 683.893 | R89: =P89^2*L89/2000 -> 4510.2785 | S89: =Q89^2*L89/2000 -> 3040.11263 | T89: =(G89/F89/I89) -> 4510.700315 | U89: =(P89^2/J89/1000) -> 11.56481667 | V89: 650
A90: 86 | B90: =(T90*U90*L90/10000)*(T90/6000) -> 50.71250352 | C90: .30-06 Springfield | D90: 4.383 | E90: 3.946 | F90: =E90/D90 -> 0.9002966005 | G90: 4050 | H90: 4005 | I90: =H90/G90 -> 0.9888888889 | J90: 54.2 | K90: R902 | L90: =$E$151 -> 9 | M90: =$F$151 -> 140 | N90: =$D$151 -> 0.308 | O90: =$G$151 -> 0.38 | P90: 941 | Q90: =P90*$H$151 -> 782.912 | R90: =P90^2*L90/2000 -> 3984.6645 | S90: =Q90^2*L90/2000 -> 2758.280399 | T90: =(G90/F90/I90) -> 4549.062626 | U90: =(P90^2/J90/1000) -> 16.33728782 | V90: 600
A91: 87 | B91: =(T91*U91*L91/10000)*(T91/6000) -> 50.62058117 | C91: 7,5x55 | D91: 4.402 | E91: 3.855 | F91: =E91/D91 -> 0.8757383008 | G91: 3800 | H91: 3688 | I91: =H91/G91 -> 0.9705263158 | J91: 54 | K91: N140 | L91: =$E$152 -> 9.8 | M91: =$F$152 -> 142 | N91: =$D$152 -> 0.307 | O91: =$G$152 -> 0.42 | P91: 915 | Q91: =P91*$H$152 -> 771.345 | R91: =P91^2*L91/2000 -> 4102.4025 | S91: =Q91^2*L91/2000 -> 2915.368234 | T91: =(G91/F91/I91) -> 4470.971862 | U91: =(P91^2/J91/1000) -> 15.50416667 | V91: 620
A92: 88 | B92: =(T92*U92*L92/10000)*(T92/6000) -> 50.52110528 | C92: 9,3x74R | D92: 5.389 | E92: 4.669 | F92: =E92/D92 -> 0.8663945073 | G92: 3400 | H92: 3057 | I92: =H92/G92 -> 0.8991176471 | J92: 54 | K92: N130 | L92: =$E$147 -> 13 | M92: =$F$147 -> 200 | N92: =$D$147 -> 0.366 | O92: =$G$147 -> 0.4 | P92: 813 | Q92: =P92*$H$147 -> 667.473 | R92: =P92^2*L92/2000 -> 4296.2985 | S92: =Q92^2*L92/2000 -> 2895.881337 | T92: =(G92/F92/I92) -> 4364.62268 | U92: =(P92^2/J92/1000) -> 12.24016667 | V92: 650
A93: 89 | B93: =(T93*U93*L93/10000)*(T93/6000) -> 50.51822441 | C93: 9,3x74R | D93: 5.389 | E93: 4.669 | F93: =E93/D93 -> 0.8663945073 | G93: 3400 | H93: 3002 | I93: =H93/G93 -> 0.8829411765 | J93: 56 | K93: N133 | L93: =$E$147 -> 13 | M93: =$F$147 -> 200 | N93: =$D$147 -> 0.366 | O93: =$G$147 -> 0.4 | P93: 813 | Q93: =P93*$H$147 -> 667.473 | R93: =P93^2*L93/2000 -> 4296.2985 | S93: =Q93^2*L93/2000 -> 2895.881337 | T93: =(G93/F93/I93) -> 4444.587452 | U93: =(P93^2/J93/1000) -> 11.80301786 | V93: 650
A94: 90 | B94: =(T94*U94*L94/10000)*(T94/6000) -> 50.23484755 | C94: 6,5x65 RWS | D94: 4.545 | E94: 4.057 | F94: =E94/D94 -> 0.8926292629 | G94: 4150 | H94: 4025 | I94: =H94/G94 -> 0.9698795181 | J94: 55 | K94: N550 | L94: =$E$155 -> 7.2 | M94: =$F$155 -> 116 | N94: =$D$155 -> 0.264 | O94: =$G$155 -> 0.46 | P94: 1001 | Q94: =P94*$H$155 -> 860.86 | R94: =P94^2*L94/2000 -> 3607.2036 | S94: =Q94^2*L94/2000 -> 2667.887783 | T94: =(G94/F94/I94) -> 4793.571268 | U94: =(P94^2/J94/1000) -> 18.2182 | V94: 650
A95: 91 | B95: =(T95*U95*L95/10000)*(T95/6000) -> 49.59752366 | C95: .30 R Blaser | D95: 4.87 | E95: 4.437 | F95: =E95/D95 -> 0.9110882957 | G95: 4050 | H95: 3987 | I95: =H95/G95 -> 0.9844444444 | J95: 58.5 | K95: R902 | L95: =$E$151 -> 9 | M95: =$F$151 -> 140 | N95: =$D$151 -> 0.308 | O95: =$G$151 -> 0.38 | P95: 974 | Q95: =P95*$H$151 -> 810.368 | R95: =P95^2*L95/2000 -> 4269.042 | S95: =Q95^2*L95/2000 -> 2955.133329 | T95: =(G95/F95/I95) -> 4515.473972 | U95: =(P95^2/J95/1000) -> 16.21668376 | V95: 650
A96: 92 | B96: =(T96*U96*L96/10000)*(T96/6000) -> 49.4885666 | C96: 8x75RS | D96: 5.259 | E96: 4.605 | F96: =E96/D96 -> 0.875641757 | G96: 3800 | H96: 3750 | I96: =H96/G96 -> 0.9868421053 | J96: 58.5 | K96: R902 | L96: =$E$150 -> 11.34 | M96: =$F$150 -> 175 | N96: =$D$150 -> 0.323 | O96: =$G$150 -> 0.44 | P96: 890 | Q96: =P96*$H$150 -> 758.28 | R96: =P96^2*L96/2000 -> 4491.207 | S96: =Q96^2*L96/2000 -> 3260.185126 | T96: =(G96/F96/I96) -> 4397.536591 | U96: =(P96^2/J96/1000) -> 13.54017094 | V96: 650
A97: 93 | B97: =(T97*U97*L97/10000)*(T97/6000) -> 49.17046461 | C97: 7x66 SE von Hofe | D97: 6.038 | E97: 5.47 | F97: =E97/D97 -> 0.9059291156 | G97: 4400 | H97: 4348 | I97: =H97/G97 -> 0.9881818182 | J97: 75.5 | K97: R904 | L97: =$E$153 -> 8.3 | M97: =$F$153 -> 128 | N97: =$D$153 -> 0.284 | O97: =$G$153 -> 0.44 | P97: 1054 | Q97: =P97*$H$153 -> 900.116 | R97: =P97^2*L97/2000 -> 4610.3014 | S97: =Q97^2*L97/2000 -> 3362.366576 | T97: =(G97/F97/I97) -> 4914.978245 | U97: =(P97^2/J97/1000) -> 14.71411921 | V97: 650
A98: 94 | B98: =(T98*U98*L98/10000)*(T98/6000) -> 48.67591938 | C98: 6,5-284Norma | D98: 4.285 | E98: 3.903 | F98: =E98/D98 -> 0.9108518086 | G98: 4100 | H98: 3992 | I98: =H98/G98 -> 0.9736585366 | J98: 50.5 | K98: R903 | L98: =$E$155 -> 7.2 | M98: =$F$155 -> 116 | N98: =$D$155 -> 0.264 | O98: =$G$155 -> 0.46 | P98: 979 | Q98: =P98*$H$155 -> 841.94 | R98: =P98^2*L98/2000 -> 3450.3876 | S98: =Q98^2*L98/2000 -> 2551.906669 | T98: =(G98/F98/I98) -> 4623.059211 | U98: =(P98^2/J98/1000) -> 18.9790297 | V98: 650
A99: 95 | B99: =(T99*U99*L99/10000)*(T99/6000) -> 48.61799429 | C99: .300 Weatherby Magnum | D99: 6.486 | E99: 6.046 | F99: =E99/D99 -> 0.9321615788 | G99: 4400 | H99: 4368 | I99: =H99/G99 -> 0.9927272727 | J99: 74 | K99: R902 | L99: =$E$151 -> 9 | M99: =$F$151 -> 140 | N99: =$D$151 -> 0.308 | O99: =$G$151 -> 0.38 | P99: 1030 | Q99: =P99*$H$151 -> 856.96 | R99: =P99^2*L99/2000 -> 4774.05 | S99: =Q99^2*L99/2000 -> 3304.711987 | T99: =(G99/F99/I99) -> 4754.792016 | U99: =(P99^2/J99/1000) -> 14.33648649 | V99: 630
A100: 96 | B100: =(T100*U100*L100/10000)*(T100/6000) -> 48.59685946 | C100: .270 Winchester | D100: 4.383 | E100: 3.946 | F100: =E100/D100 -> 0.9002966005 | G100: 4300 | H100: 4121 | I100: =H100/G100 -> 0.958372093 | J100: 61.5 | K100: MRP | L100: =$E$154 -> 8 | M100: =$F$154 -> 123 | N100: =$D$154 -> 0.277 | O100: =$G$154 -> 0.44 | P100: 950 | Q100: =P100*$H$154 -> 812.25 | R100: =P100^2*L100/2000 -> 3610 | S100: =Q100^2*L100/2000 -> 2639.00025 | T100: =(G100/F100/I100) -> 4983.66322 | U100: =(P100^2/J100/1000) -> 14.67479675 | V100: 600
A101: 97 | B101: =(T101*U101*L101/10000)*(T101/6000) -> 48.56373857 | C101: 7,5x55 | D101: 4.402 | E101: 3.855 | F101: =E101/D101 -> 0.8757383008 | G101: 3800 | H101: 3710 | I101: =H101/G101 -> 0.9763157895 | J101: 55.5 | K101: R907 | L101: =$E$152 -> 9.8 | M101: =$F$152 -> 142 | N101: =$D$152 -> 0.307 | O101: =$G$152 -> 0.42 | P101: 914 | Q101: =P101*$H$152 -> 770.502 | R101: =P101^2*L101/2000 -> 4093.4404 | S101: =Q101^2*L101/2000 -> 2908.999327 | T101: =(G101/F101/I101) -> 4444.459361 | U101: =(P101^2/J101/1000) -> 15.05218018 | V101: 620
A102: 98 | B102: =(T102*U102*L102/10000)*(T102/6000) -> 48.05240242 | C102: 8x75RS | D102: 5.259 | E102: 4.605 | F102: =E102/D102 -> 0.875641757 | G102: 3800 | H102: 3729 | I102: =H102/G102 -> 0.9813157895 | J102: 63 | K102: R903 | L102: =$E$150 -> 11.34 | M102: =$F$150 -> 175 | N102: =$D$150 -> 0.323 | O102: =$G$150 -> 0.44 | P102: 905 | Q102: =P102*$H$150 -> 771.06 | R102: =P102^2*L102/2000 -> 4643.87175 | S102: =Q102^2*L102/2000 -> 3371.005079 | T102: =(G102/F102/I102) -> 4422.301479 | U102: =(P102^2/J102/1000) -> 13.00039683 | V102: 650
A103: 99 | B103: =(T103*U103*L103/10000)*(T103/6000) -> 47.52629889 | C103: 7x65R | D103: 4.244 | E103: 3.751 | F103: =E103/D103 -> 0.8838360038 | G103: 3800 | H103: 3599 | I103: =H103/G103 -> 0.9471052632 | J103: 53 | K103: R903 | L103: =$E$153 -> 8.3 | M103: =$F$153 -> 128 | N103: =$D$153 -> 0.284 | O103: =$G$153 -> 0.44 | P103: 940 | Q103: =P103*$H$153 -> 802.76 | R103: =P103^2*L103/2000 -> 3666.94 | S103: =Q103^2*L103/2000 -> 2674.358013 | T103: =(G103/F103/I103) -> 4539.558924 | U103: =(P103^2/J103/1000) -> 16.67169811 | V103: 650
A104: 100 | B104: =(T104*U104*L104/10000)*(T104/6000) -> 47.13138422 | C104: 7x66 SE von Hofe | D104: 6.038 | E104: 5.47 | F104: =E104/D104 -> 0.9059291156 | G104: 4400 | H104: 4332 | I104: =H104/G104 -> 0.9845454545 | J104: 78 | K104: R904 | L104: =$E$153 -> 8.3 | M104: =$F$153 -> 128 | N104: =$D$153 -> 0.284 | O104: =$G$153 -> 0.44 | P104: 1045 | Q104: =P104*$H$153 -> 892.43 | R104: =P104^2*L104/2000 -> 4531.90375 | S104: =Q104^2*L104/2000 -> 3305.189915 | T104: =(G104/F104/I104) -> 4933.131443 | U104: =(P104^2/J104/1000) -> 14.00032051 | V104: 650
A105: 101 | B105: =(T105*U105*L105/10000)*(T105/6000) -> 46.94409622 | C105: 6,5-284Norma | D105: 4.285 | E105: 3.903 | F105: =E105/D105 -> 0.9108518086 | G105: 4100 | H105: 4026 | I105: =H105/G105 -> 0.9819512195 | J105: 53.5 | K105: N550 | L105: =$E$155 -> 7.2 | M105: =$F$155 -> 116 | N105: =$D$155 -> 0.264 | O105: =$G$155 -> 0.46 | P105: 998 | Q105: =P105*$H$155 -> 858.28 | R105: =P105^2*L105/2000 -> 3585.6144 | S105: =Q105^2*L105/2000 -> 2651.92041 | T105: =(G105/F105/I105) -> 4584.016982 | U105: =(P105^2/J105/1000) -> 18.6168972 | V105: 650
A106: 102 | B106: =(T106*U106*L106/10000)*(T106/6000) -> 46.76650888 | C106: .300 Weatherby Magnum | D106: 6.486 | E106: 6.046 | F106: =E106/D106 -> 0.9321615788 | G106: 4400 | H106: 4368 | I106: =H106/G106 -> 0.9927272727 | J106: 75 | K106: N140 | L106: =$E$151 -> 9 | M106: =$F$151 -> 140 | N106: =$D$151 -> 0.308 | O106: =$G$151 -> 0.38 | P106: 1017 | Q106: =P106*$H$151 -> 846.144 | R106: =P106^2*L106/2000 -> 4654.3005 | S106: =Q106^2*L106/2000 -> 3221.818509 | T106: =(G106/F106/I106) -> 4754.792016 | U106: =(P106^2/J106/1000) -> 13.79052 | V106: 630
A107: 103 | B107: =(T107*U107*L107/10000)*(T107/6000) -> 46.6354803 | C107: 6,5x65 RWS | D107: 4.545 | E107: 4.057 | F107: =E107/D107 -> 0.8926292629 | G107: 4150 | H107: 4083 | I107: =H107/G107 -> 0.9838554217 | J107: 57 | K107: R904 | L107: =$E$155 -> 7.2 | M107: =$F$155 -> 116 | N107: =$D$155 -> 0.264 | O107: =$G$155 -> 0.46 | P107: 996 | Q107: =P107*$H$155 -> 856.56 | R107: =P107^2*L107/2000 -> 3571.2576 | S107: =Q107^2*L107/2000 -> 2641.302121 | T107: =(G107/F107/I107) -> 4725.477432 | U107: =(P107^2/J107/1000) -> 17.40378947 | V107: 650
A108: 104 | B108: =(T108*U108*L108/10000)*(T108/6000) -> 46.59511423 | C108: .300 Weatherby Magnum | D108: 6.486 | E108: 6.046 | F108: =E108/D108 -> 0.9321615788 | G108: 4400 | H108: 4377 | I108: =H108/G108 -> 0.9947727273 | J108: 79 | K108: R903 | L108: =$E$151 -> 9 | M108: =$F$151 -> 140 | N108: =$D$151 -> 0.308 | O108: =$G$151 -> 0.38 | P108: 1044 | Q108: =P108*$H$151 -> 868.608 | R108: =P108^2*L108/2000 -> 4904.712 | S108: =Q108^2*L108/2000 -> 3395.159359 | T108: =(G108/F108/I108) -> 4745.015199 | U108: =(P108^2/J108/1000) -> 13.79665823 | V108: 630
A109: 105 | B109: =(T109*U109*L109/10000)*(T109/6000) -> 46.29299298 | C109: 6,5x55 SE | D109: 3.623 | E109: 3.244 | F109: =E109/D109 -> 0.8953905603 | G109: 3800 | H109: 3672 | I109: =H109/G109 -> 0.9663157895 | J109: 40.5 | K109: N150 | L109: =$E$155 -> 7.2 | M109: =$F$155 -> 116 | N109: =$D$155 -> 0.264 | O109: =$G$155 -> 0.46 | P109: 900 | Q109: =P109*$H$155 -> 774 | R109: =P109^2*L109/2000 -> 2916 | S109: =Q109^2*L109/2000 -> 2156.6736 | T109: =(G109/F109/I109) -> 4391.895613 | U109: =(P109^2/J109/1000) -> 20 | V109: 600
A110: 106 | B110: =(T110*U110*L110/10000)*(T110/6000) -> 45.92174717 | C110: 7,82 Warbird | D110: 7.889 | E110: 7.293 | F110: =E110/D110 -> 0.9244517683 | G110: 4400 | H110: 4356 | I110: =H110/G110 -> 0.99 | J110: 99.5 | K110: R904 | L110: =$E$151 -> 9 | M110: =$F$151 -> 140 | N110: =$D$151 -> 0.308 | O110: =$G$151 -> 0.38 | P110: 1148 | Q110: =P110*$H$151 -> 955.136 | R110: =P110^2*L110/2000 -> 5930.568 | S110: =Q110^2*L110/2000 -> 4105.281503 | T110: =(G110/F110/I110) -> 4807.654219 | U110: =(P110^2/J110/1000) -> 13.24526633 | V110: 685
A111: 107 | B111: =(T111*U111*L111/10000)*(T111/6000) -> 43.50514982 | C111: 7,82 Warbird | D111: 7.889 | E111: 7.293 | F111: =E111/D111 -> 0.9244517683 | G111: 4400 | H111: 4368 | I111: =H111/G111 -> 0.9927272727 | J111: 103 | K111: N160 | L111: =$E$151 -> 9 | M111: =$F$151 -> 140 | N111: =$D$151 -> 0.308 | O111: =$G$151 -> 0.38 | P111: 1140 | Q111: =P111*$H$151 -> 948.48 | R111: =P111^2*L111/2000 -> 5848.2 | S111: =Q111^2*L111/2000 -> 4048.264397 | T111: =(G111/F111/I111) -> 4794.446378 | U111: =(P111^2/J111/1000) -> 12.61747573 | V111: 685
A112: 108 | B112: =(T112*U112*L112/10000)*(T112/6000) -> 43.30956895 | C112: 6,5x57 | D112: 3.831 | E112: 3.454 | F112: =E112/D112 -> 0.9015922736 | G112: 3900 | H112: 3830 | I112: =H112/G112 -> 0.9820512821 | J112: 47.5 | K112: R903 | L112: =$E$155 -> 7.2 | M112: =$F$155 -> 116 | N112: =$D$155 -> 0.264 | O112: =$G$155 -> 0.46 | P112: 940 | Q112: =P112*$H$155 -> 808.4 | R112: =P112^2*L112/2000 -> 3180.96 | S112: =Q112^2*L112/2000 -> 2352.638016 | T112: =(G112/F112/I112) -> 4404.739803 | U112: =(P112^2/J112/1000) -> 18.60210526 | V112: 600
A113: 109 | B113: =(T113*U113*L113/10000)*(T113/6000) -> 43.1660922 | C113: 6,5x57 | D113: 3.831 | E113: 3.454 | F113: =E113/D113 -> 0.9015922736 | G113: 3900 | H113: 3779 | I113: =H113/G113 -> 0.968974359 | J113: 50 | K113: N550 | L113: =$E$155 -> 7.2 | M113: =$F$155 -> 116 | N113: =$D$155 -> 0.264 | O113: =$G$155 -> 0.46 | P113: 950 | Q113: =P113*$H$155 -> 817 | R113: =P113^2*L113/2000 -> 3249 | S113: =Q113^2*L113/2000 -> 2402.9604 | T113: =(G113/F113/I113) -> 4464.184558 | U113: =(P113^2/J113/1000) -> 18.05 | V113: 600
A114: 110 | B114: =(T114*U114*L114/10000)*(T114/6000) -> 43.0167322 | C114: 6,5x55 SE | D114: 3.623 | E114: 3.244 | F114: =E114/D114 -> 0.8953905603 | G114: 3800 | H114: 3784 | I114: =H114/G114 -> 0.9957894737 | J114: 41.5 | K114: R907 | L114: =$E$155 -> 7.2 | M114: =$F$155 -> 116 | N114: =$D$155 -> 0.264 | O114: =$G$155 -> 0.46 | P114: 905 | Q114: =P114*$H$155 -> 778.3 | R114: =P114^2*L114/2000 -> 2948.49 | S114: =Q114^2*L114/2000 -> 2180.703204 | T114: =(G114/F114/I114) -> 4261.902931 | U114: =(P114^2/J114/1000) -> 19.73554217 | V114: 600
A115: 111 | B115: =(T115*U115*L115/10000)*(T115/6000) -> 42.98437118 | C115: 6,5x55 SE | D115: 3.623 | E115: 3.244 | F115: =E115/D115 -> 0.8953905603 | G115: 3800 | H115: 3656 | I115: =H115/G115 -> 0.9621052632 | J115: 44 | K115: R902 | L115: =$E$155 -> 7.2 | M115: =$F$155 -> 116 | N115: =$D$155 -> 0.264 | O115: =$G$155 -> 0.46 | P115: 900 | Q115: =P115*$H$155 -> 774 | R115: =P115^2*L115/2000 -> 2916 | S115: =Q115^2*L115/2000 -> 2156.6736 | T115: =(G115/F115/I115) -> 4411.116163 | U115: =(P115^2/J115/1000) -> 18.40909091 | V115: 600
A116: 112 | B116: =(T116*U116*L116/10000)*(T116/6000) -> 42.91048269 | C116: 6,5x68 | D116: 5.584 | E116: 5.101 | F116: =E116/D116 -> 0.9135028653 | G116: 4300 | H116: 4242 | I116: =H116/G116 -> 0.9865116279 | J116: 71 | K116: R905 | L116: =$E$155 -> 7.2 | M116: =$F$155 -> 116 | N116: =$D$155 -> 0.264 | O116: =$G$155 -> 0.46 | P116: 1056 | Q116: =P116*$H$155 -> 908.16 | R116: =P116^2*L116/2000 -> 4014.4896 | S116: =Q116^2*L116/2000 -> 2969.116508 | T116: =(G116/F116/I116) -> 4771.515435 | U116: =(P116^2/J116/1000) -> 15.70614085 | V116: 650
A117: 113 | B117: =(T117*U117*L117/10000)*(T117/6000) -> 41.70456129 | C117: 6,5x68 | D117: 5.584 | E117: 5.101 | F117: =E117/D117 -> 0.9135028653 | G117: 4300 | H117: 4242 | I117: =H117/G117 -> 0.9865116279 | J117: 69.5 | K117: N160 | L117: =$E$155 -> 7.2 | M117: =$F$155 -> 116 | N117: =$D$155 -> 0.264 | O117: =$G$155 -> 0.46 | P117: 1030 | Q117: =P117*$H$155 -> 885.8 | R117: =P117^2*L117/2000 -> 3819.24 | S117: =Q117^2*L117/2000 -> 2824.709904 | T117: =(G117/F117/I117) -> 4771.515435 | U117: =(P117^2/J117/1000) -> 15.2647482 | V117: 650
A118: 114 | B118: =(T118*U118*L118/10000)*(T118/6000) -> 41.60517424 | C118: .300 Weatherby Magnum | D118: 6.486 | E118: 6.046 | F118: =E118/D118 -> 0.9321615788 | G118: 4400 | H118: 4380 | I118: =H118/G118 -> 0.9954545455 | J118: 86 | K118: R904 | L118: =$E$151 -> 9 | M118: =$F$151 -> 140 | N118: =$D$151 -> 0.308 | O118: =$G$151 -> 0.38 | P118: 1030 | Q118: =P118*$H$151 -> 856.96 | R118: =P118^2*L118/2000 -> 4774.05 | S118: =Q118^2*L118/2000 -> 3304.711987 | T118: =(G118/F118/I118) -> 4741.765188 | U118: =(P118^2/J118/1000) -> 12.33604651 | V118: 630
A119: 115 | B119: =(T119*U119*L119/10000)*(T119/6000) -> 39.23995981 | C119: 10.3x60R | D119: 5.955 | E119: 5.069 | F119: =E119/D119 -> 0.8512174643 | G119: 2700 | H119: 2018 | I119: =H119/G119 -> 0.7474074074 | J119: 71 | K119: R907 | L119: =$E$145 -> 16.5 | M119: =$F$145 -> 254 | N119: =$D$145 -> 0.413 | O119: =$G$145 -> 0.345 | P119: 750 | Q119: =P119*$H$145 -> 606.75 | R119: =P119^2*L119/2000 -> 4640.625 | S119: =Q119^2*L119/2000 -> 3037.200891 | T119: =(G119/F119/I119) -> 4243.906831 | U119: =(P119^2/J119/1000) -> 7.922535211 | V119: 685
A120: 116 | B120: =(T120*U120*L120/10000)*(T120/6000) -> 39.23995981 | C120: 10.3x60R | D120: 5.955 | E120: 5.069 | F120: =E120/D120 -> 0.8512174643 | G120: 2700 | H120: 2018 | I120: =H120/G120 -> 0.7474074074 | J120: 71 | K120: R903 | L120: =$E$145 -> 16.5 | M120: =$F$145 -> 254 | N120: =$D$145 -> 0.413 | O120: =$G$145 -> 0.345 | P120: 750 | Q120: =P120*$H$145 -> 606.75 | R120: =P120^2*L120/2000 -> 4640.625 | S120: =Q120^2*L120/2000 -> 3037.200891 | T120: =(G120/F120/I120) -> 4243.906831 | U120: =(P120^2/J120/1000) -> 7.922535211 | V120: 685
A121: 117 | B121: =(T121*U121*L121/10000)*(T121/6000) -> 38.95606172 | C121: 8x57IRS | D121: 4.091 | E121: 3.665 | F121: =E121/D121 -> 0.8958689807 | G121: 3300 | H121: 3139 | I121: =H121/G121 -> 0.9512121212 | J121: 47.5 | K121: R902 | L121: =$E$150 -> 11.34 | M121: =$F$150 -> 175 | N121: =$D$150 -> 0.323 | O121: =$G$150 -> 0.44 | P121: 808 | Q121: =P121*$H$150 -> 688.416 | R121: =P121^2*L121/2000 -> 3701.73888 | S121: =Q121^2*L121/2000 -> 2687.10706 | T121: =(G121/F121/I121) -> 3872.50569 | U121: =(P121^2/J121/1000) -> 13.74450526 | V121: 630
A122: 118 | B122: =(T122*U122*L122/10000)*(T122/6000) -> 36.04820539 | C122: 6,5x68R | D122: 5.389 | E122: 4.903 | F122: =E122/D122 -> 0.9098162924 | G122: 3900 | H122: 3786 | I122: =H122/G122 -> 0.9707692308 | J122: 67 | K122: R905 | L122: =$E$155 -> 7.2 | M122: =$F$155 -> 116 | N122: =$D$155 -> 0.264 | O122: =$G$155 -> 0.46 | P122: 1016 | Q122: =P122*$H$155 -> 873.76 | R122: =P122^2*L122/2000 -> 3716.1216 | S122: =Q122^2*L122/2000 -> 2748.443535 | T122: =(G122/F122/I122) -> 4415.652566 | U122: =(P122^2/J122/1000) -> 15.40680597 | V122: 650
A123: 119 | B123: =(T123*U123*L123/10000)*(T123/6000) -> 35.30153745 | C123: 10.3x60R | D123: 5.955 | E123: 5.069 | F123: =E123/D123 -> 0.8512174643 | G123: 2700 | H123: 2156 | I123: =H123/G123 -> 0.7985185185 | J123: 72.5 | K123: R903 | L123: =$E$145 -> 16.5 | M123: =$F$145 -> 254 | N123: =$D$145 -> 0.413 | O123: =$G$145 -> 0.345 | P123: 768 | Q123: =P123*$H$145 -> 621.312 | R123: =P123^2*L123/2000 -> 4866.048 | S123: =Q123^2*L123/2000 -> 3184.735961 | T123: =(G123/F123/I123) -> 3972.265299 | U123: =(P123^2/J123/1000) -> 8.135503448 | V123: 685
A124: 120 | B124: =(T124*U124*L124/10000)*(T124/6000) -> 35.16426556 | C124: 10.3x60R | D124: 5.955 | E124: 5.069 | F124: =E124/D124 -> 0.8512174643 | G124: 2700 | H124: 2361 | I124: =H124/G124 -> 0.8744444444 | J124: 58.5 | K124: N130 | L124: =$E$145 -> 16.5 | M124: =$F$145 -> 254 | N124: =$D$145 -> 0.413 | O124: =$G$145 -> 0.345 | P124: 754 | Q124: =P124*$H$145 -> 609.986 | R124: =P124^2*L124/2000 -> 4690.257 | S124: =Q124^2*L124/2000 -> 3069.684092 | T124: =(G124/F124/I124) -> 3627.362975 | U124: =(P124^2/J124/1000) -> 9.718222222 | V124: 685
A125: 121 | B125: =(T125*U125*L125/10000)*(T125/6000) -> 34.74430813 | C125: 6,5x68R | D125: 5.389 | E125: 4.903 | F125: =E125/D125 -> 0.9098162924 | G125: 3900 | H125: 3812 | I125: =H125/G125 -> 0.9774358974 | J125: 65.5 | K125: N160 | L125: =$E$155 -> 7.2 | M125: =$F$155 -> 116 | N125: =$D$155 -> 0.264 | O125: =$G$155 -> 0.46 | P125: 993 | Q125: =P125*$H$155 -> 853.98 | R125: =P125^2*L125/2000 -> 3549.7764 | S125: =Q125^2*L125/2000 -> 2625.414625 | T125: =(G125/F125/I125) -> 4385.535314 | U125: =(P125^2/J125/1000) -> 15.05418321 | V125: 650
A126: 122 | B126: =(T126*U126*L126/10000)*(T126/6000) -> 34.59271663 | C126: 10.3x60R | D126: 5.955 | E126: 5.281 | F126: =E126/D126 -> 0.8868178002 | G126: 2700 | H126: 2063 | I126: =H126/G126 -> 0.7640740741 | J126: 71 | K126: R907 | L126: =$E$145 -> 16.5 | M126: =$F$145 -> 254 | N126: =$D$145 -> 0.413 | O126: =$G$145 -> 0.345 | P126: 750 | Q126: =P126*$H$145 -> 606.75 | R126: =P126^2*L126/2000 -> 4640.625 | S126: =Q126^2*L126/2000 -> 3037.200891 | T126: =(G126/F126/I126) -> 3984.684117 | U126: =(P126^2/J126/1000) -> 7.922535211 | V126: 685
A127: 123 | B127: =(T127*U127*L127/10000)*(T127/6000) -> 34.58634854 | C127: 10.3x60R | D127: 5.955 | E127: 5.069 | F127: =E127/D127 -> 0.8512174643 | G127: 2700 | H127: 2274 | I127: =H127/G127 -> 0.8422222222 | J127: 66 | K127: R902 | L127: =$E$145 -> 16.5 | M127: =$F$145 -> 254 | N127: =$D$145 -> 0.413 | O127: =$G$145 -> 0.345 | P127: 765 | Q127: =P127*$H$145 -> 618.885 | R127: =P127^2*L127/2000 -> 4828.10625 | S127: =Q127^2*L127/2000 -> 3159.903807 | T127: =(G127/F127/I127) -> 3766.140715 | U127: =(P127^2/J127/1000) -> 8.867045455 | V127: 685
A128: 124 | B128: =(T128*U128*L128/10000)*(T128/6000) -> 33.64803163 | C128: .416 Rigby | D128: 8.278 | E128: 7.319 | F128: =E128/D128 -> 0.8841507611 | G128: 3250 | H128: 3177 | I128: =H128/G128 -> 0.9775384615 | J128: 99.5 | K128: R903 | L128: =$E$144 -> 17.5 | M128: =$F$144 -> 270 | N128: =$D$144 -> 0.416 | O128: =$G$144 -> 0.375 | P128: 901 | Q128: =P128*$H$144 -> 746.929 | R128: =P128^2*L128/2000 -> 7103.25875 | S128: =Q128^2*L128/2000 -> 4881.650647 | T128: =(G128/F128/I128) -> 3760.305951 | U128: =(P128^2/J128/1000) -> 8.15880402 | V128: 685
A129: 125 | B129: =(T129*U129*L129/10000)*(T129/6000) -> 31.87836533 | C129: 6,5x57R | D129: 3.831 | E129: 3.454 | F129: =E129/D129 -> 0.9015922736 | G129: 3300 | H129: 3141 | I129: =H129/G129 -> 0.9518181818 | J129: 43.5 | K129: R903 | L129: =$E$155 -> 7.2 | M129: =$F$155 -> 116 | N129: =$D$155 -> 0.264 | O129: =$G$155 -> 0.46 | P129: 884 | Q129: =P129*$H$155 -> 760.24 | R129: =P129^2*L129/2000 -> 2813.2416 | S129: =Q129^2*L129/2000 -> 2080.673487 | T129: =(G129/F129/I129) -> 3845.472962 | U129: =(P129^2/J129/1000) -> 17.96450575 | V129: 600
A130: 126 | B130: =(T130*U130*L130/10000)*(T130/6000) -> 31.32810463 | C130: 6,5x57R | D130: 3.831 | E130: 3.454 | F130: =E130/D130 -> 0.9015922736 | G130: 3300 | H130: 3228 | I130: =H130/G130 -> 0.9781818182 | J130: 40.5 | K130: N135 | L130: =$E$155 -> 7.2 | M130: =$F$155 -> 116 | N130: =$D$155 -> 0.264 | O130: =$G$155 -> 0.46 | P130: 869 | Q130: =P130*$H$155 -> 747.34 | R130: =P130^2*L130/2000 -> 2718.5796 | S130: =Q130^2*L130/2000 -> 2010.661472 | T130: =(G130/F130/I130) -> 3741.831033 | U130: =(P130^2/J130/1000) -> 18.64595062 | V130: 600
A131: 127 | B131: =(T131*U131*L131/10000)*(T131/6000) -> 30.0301191 | C131: 10.3x60R | D131: 5.955 | E131: 5.069 | F131: =E131/D131 -> 0.8512174643 | G131: 2700 | H131: 2684 | I131: =H131/G131 -> 0.9940740741 | J131: 56 | K131: R901 | L131: =$E$145 -> 16.5 | M131: =$F$145 -> 254 | N131: =$D$145 -> 0.413 | O131: =$G$145 -> 0.345 | P131: 775 | Q131: =P131*$H$145 -> 626.975 | R131: =P131^2*L131/2000 -> 4955.15625 | S131: =Q131^2*L131/2000 -> 3243.055618 | T131: =(G131/F131/I131) -> 3190.83606 | U131: =(P131^2/J131/1000) -> 10.72544643 | V131: 685
A132: 128 | B132: =(T132*U132*L132/10000)*(T132/6000) -> 28.99620482 | C132: 10.3x60R | D132: 5.955 | E132: 5.069 | F132: =E132/D132 -> 0.8512174643 | G132: 2700 | H132: 2520 | I132: =H132/G132 -> 0.9333333333 | J132: 67.5 | K132: R902 | L132: =$E$145 -> 16.5 | M132: =$F$145 -> 254 | N132: =$D$145 -> 0.413 | O132: =$G$145 -> 0.345 | P132: 785 | Q132: =P132*$H$145 -> 635.065 | R132: =P132^2*L132/2000 -> 5083.85625 | S132: =Q132^2*L132/2000 -> 3327.287322 | T132: =(G132/F132/I132) -> 3398.493645 | U132: =(P132^2/J132/1000) -> 9.129259259 | V132: 685
A133: 129 | B133: =(T133*U133*L133/10000)*(T133/6000) -> 27.83801587 | C133: 10.3x60R | D133: 5.955 | E133: 5.069 | F133: =E133/D133 -> 0.8512174643 | G133: 2700 | H133: 2582 | I133: =H133/G133 -> 0.9562962963 | J133: 68 | K133: R902 | L133: =$E$145 -> 16.5 | M133: =$F$145 -> 254 | N133: =$D$145 -> 0.413 | O133: =$G$145 -> 0.345 | P133: 791 | Q133: =P133*$H$145 -> 639.919 | R133: =P133^2*L133/2000 -> 5161.86825 | S133: =Q133^2*L133/2000 -> 3378.344694 | T133: =(G133/F133/I133) -> 3316.887678 | U133: =(P133^2/J133/1000) -> 9.201191176 | V133: 685
A134: 130 | B134: =(T134*U134*L134/10000)*(T134/6000) -> 27.44150682 | C134: 10.3x60R | D134: 5.955 | E134: 5.069 | F134: =E134/D134 -> 0.8512174643 | G134: 2700 | H134: 2700 | I134: =H134/G134 -> 1 | J134: 65.5 | K134: R901 | L134: =$E$145 -> 16.5 | M134: =$F$145 -> 254 | N134: =$D$145 -> 0.413 | O134: =$G$145 -> 0.345 | P134: 806 | Q134: =P134*$H$145 -> 652.054 | R134: =P134^2*L134/2000 -> 5359.497 | S134: =Q134^2*L134/2000 -> 3507.688956 | T134: =(G134/F134/I134) -> 3171.927402 | U134: =(P134^2/J134/1000) -> 9.91810687 | V134: 685
A135: 131 | B135: =(T135*U135*L135/10000)*(T135/6000) -> 27.02983303 | C135: .500/416 NE | D135: 8.765 | E135: 7.81 | F135: =E135/D135 -> 0.8910439247 | G135: 3100 | H135: 3067 | I135: =H135/G135 -> 0.9893548387 | J135: 98 | K135: N150 | L135: =$E$144 -> 17.5 | M135: =$F$144 -> 270 | N135: =$D$144 -> 0.416 | O135: =$G$144 -> 0.375 | P135: 857 | Q135: =P135*$H$144 -> 710.453 | R135: =P135^2*L135/2000 -> 6426.42875 | S135: =Q135^2*L135/2000 -> 4416.505321 | T135: =(G135/F135/I135) -> 3516.499 | U135: =(P135^2/J135/1000) -> 7.494377551 | V135: 600
A136: 132 | B136: =(T136*U136*L136/10000)*(T136/6000) -> 27.00000568 | C136: .500/416 NE | D136: 8.765 | E136: 7.81 | F136: =E136/D136 -> 0.8910439247 | G136: 3100 | H136: 3036 | I136: =H136/G136 -> 0.9793548387 | J136: 102 | K136: R903 | L136: =$E$144 -> 17.5 | M136: =$F$144 -> 270 | N136: =$D$144 -> 0.416 | O136: =$G$144 -> 0.375 | P136: 865 | Q136: =P136*$H$144 -> 717.085 | R136: =P136^2*L136/2000 -> 6546.96875 | S136: =Q136^2*L136/2000 -> 4499.345351 | T136: =(G136/F136/I136) -> 3552.405281 | U136: =(P136^2/J136/1000) -> 7.335539216 | V136: 600
A137: 133 | B137: =(T137*U137*L137/10000)*(T137/6000) -> 26.07414774 | C137: .500/416 NE | D137: 8.765 | E137: 7.81 | F137: =E137/D137 -> 0.8910439247 | G137: 3100 | H137: 3018 | I137: =H137/G137 -> 0.9735483871 | J137: 102 | K137: R907 | L137: =$E$144 -> 17.5 | M137: =$F$144 -> 270 | N137: =$D$144 -> 0.416 | O137: =$G$144 -> 0.375 | P137: 845 | Q137: =P137*$H$144 -> 700.505 | R137: =P137^2*L137/2000 -> 6247.71875 | S137: =Q137^2*L137/2000 -> 4293.688481 | T137: =(G137/F137/I137) -> 3573.592589 | U137: =(P137^2/J137/1000) -> 7.000245098 | V137: 600
C143: Geschoss: Gian-Marchet® | D143: Kal. | E143: Masse Gramm | F143: Masse Grains | G143: BC | H143: BC-Faktor
C144: Okavango | D144: 0.416 | E144: 17.5 | F144: 270 | G144: 0.375 | H144: 0.829
C145: Original | D145: 0.413 | E145: 16.5 | F145: 254 | G145: 0.345 | H145: 0.809
C146: Otjiruse | D146: 0.375 | E146: 15.5 | F146: 239 | G146: 0.4 | H146: 0.841
C147: Ole | D147: 0.366 | E147: 13 | F147: 200 | G147: 0.4 | H147: 0.821
C148: Drückjagd | D148: 0.366 | E148: 14.5 | F148: 224 | G148: 0.33 | H148: 0.819
C149: Highland | D149: 0.338 | E149: 12.7 | F149: 196 | G149: 0.46 | H149: 0.855
C150: Fontana | D150: 0.323 | E150: 11.34 | F150: 175 | G150: 0.44 | H150: 0.852
C151: Jenatsch | D151: 0.308 | E151: 9 | F151: 140 | G151: 0.38 | H151: 0.832
C152: Guisan | D152: 0.307 | E152: 9.8 | F152: 142 | G152: 0.42 | H152: 0.843
C153: Von Planta | D153: 0.284 | E153: 8.3 | F153: 128 | G153: 0.44 | H153: 0.854
C154: Von Travers | D154: 0.277 | E154: 8 | F154: 123 | G154: 0.44 | H154: 0.855
C155: Von Salis | D155: 0.264 | E155: 7.2 | F155: 116 | G155: 0.46 | H155: 0.86

Sheet Graphik-Effizienz-Faktor
U2: Copyright© by Gian-Marchet® 2008 Alle Rechte vorbehalten All Rights reserved
T4: 1 | U4: ='Effizienz-Faktor-Neu'!C5 -> .416/323 Gian-Marchet® | V4: ='Effizienz-Faktor-Neu'!B5 -> 113.4871734
T5: 2 | U5: ='Effizienz-Faktor-Neu'!C6 -> .416/323 Gian-Marchet® | V5: ='Effizienz-Faktor-Neu'!B6 -> 108.1770039
T6: 3 | U6: ='Effizienz-Faktor-Neu'!C7 -> .376 Steyr | V6: ='Effizienz-Faktor-Neu'!B7 -> 106.6316987
T7: 4 | U7: ='Effizienz-Faktor-Neu'!C8 -> 10,3x72 Gian-Marchet® | V7: ='Effizienz-Faktor-Neu'!B8 -> 102.0221753
T8: 5 | U8: ='Effizienz-Faktor-Neu'!C9 -> .416 Taylor | V8: ='Effizienz-Faktor-Neu'!B9 -> 100.2825909
T9: 6 | U9: ='Effizienz-Faktor-Neu'!C10 -> .416 Taylor | V9: ='Effizienz-Faktor-Neu'!B10 -> 95.96602505
T10: 7 | U10: ='Effizienz-Faktor-Neu'!C11 -> .416 Remington Magnum | V10: ='Effizienz-Faktor-Neu'!B11 -> 93.63300492
T11: 8 | U11: ='Effizienz-Faktor-Neu'!C12 -> .375 Holland & Holland Magnum | V11: ='Effizienz-Faktor-Neu'!B12 -> 92.16650971
T12: 9 | U12: ='Effizienz-Faktor-Neu'!C13 -> .375 Holland & Holland Magnum | V12: ='Effizienz-Faktor-Neu'!B13 -> 86.42366413
T13: 10 | U13: ='Effizienz-Faktor-Neu'!C14 -> 9,3x64 | V13: ='Effizienz-Faktor-Neu'!B14 -> 84.21202466
T14: 11 | U14: ='Effizienz-Faktor-Neu'!C15 -> 9,3x64 | V14: ='Effizienz-Faktor-Neu'!B15 -> 83.21020314
T15: 12 | U15: ='Effizienz-Faktor-Neu'!C16 -> .416 Remington Magnum | V15: ='Effizienz-Faktor-Neu'!B16 -> 81.46932063
T16: 13 | U16: ='Effizienz-Faktor-Neu'!C17 -> .375 Holland & Holland Magnum | V16: ='Effizienz-Faktor-Neu'!B17 -> 81.20122068
T17: 14 | U17: ='Effizienz-Faktor-Neu'!C18 -> .338 Winchester Magnum | V17: ='Effizienz-Faktor-Neu'!B18 -> 80.24756704
T18: 15 | U18: ='Effizienz-Faktor-Neu'!C19 -> 10,3x72 Gian-Marchet® | V18: ='Effizienz-Faktor-Neu'!B19 -> 79.93790471
T19: 16 | U19: ='Effizienz-Faktor-Neu'!C20 -> .416 Remington Magnum | V19: ='Effizienz-Faktor-Neu'!B20 -> 79.41217105
T20: 17 | U20: ='Effizienz-Faktor-Neu'!C21 -> .308 Winchester | V20: ='Effizienz-Faktor-Neu'!B21 -> 78.80479698
T21: 18 | U21: ='Effizienz-Faktor-Neu'!C22 -> .416 Remington Magnum | V21: ='Effizienz-Faktor-Neu'!B22 -> 78.18003161
T22: 19 | U22: ='Effizienz-Faktor-Neu'!C23 -> 9,3x64 | V22: ='Effizienz-Faktor-Neu'!B23 -> 78.16620686
T23: 20 | U23: ='Effizienz-Faktor-Neu'!C24 -> .375 Ruger | V23: ='Effizienz-Faktor-Neu'!B24 -> 77.9976739
T24: 21 | U24: ='Effizienz-Faktor-Neu'!C25 -> 8x68S | V24: ='Effizienz-Faktor-Neu'!B25 -> 74.05400582
T25: 22 | U25: ='Effizienz-Faktor-Neu'!C26 -> .375 Ruger | V25: ='Effizienz-Faktor-Neu'!B26 -> 72.53424305
T26: 23 | U26: ='Effizienz-Faktor-Neu'!C27 -> .308 Winchester | V26: ='Effizienz-Faktor-Neu'!B27 -> 70.70669209
T27: 24 | U27: ='Effizienz-Faktor-Neu'!C28 -> 10,57 Meteor | V27: ='Effizienz-Faktor-Neu'!B28 -> 70.58771024
T28: 25 | U28: ='Effizienz-Faktor-Neu'!C29 -> 10,57 Meteor | V28: ='Effizienz-Faktor-Neu'!B29 -> 70.28519524
T29: 26 | U29: ='Effizienz-Faktor-Neu'!C30 -> 7mm-08 | V29: ='Effizienz-Faktor-Neu'!B30 -> 70.15126083
T30: 27 | U30: ='Effizienz-Faktor-Neu'!C31 -> 8x64S | V30: ='Effizienz-Faktor-Neu'!B31 -> 68.89078219
T31: 28 | U31: ='Effizienz-Faktor-Neu'!C32 -> .378 Weatherby Magnum | V31: ='Effizienz-Faktor-Neu'!B32 -> 68.83969908
T32: 29 | U32: ='Effizienz-Faktor-Neu'!C33 -> .300 Weatherby Magnum | V32: ='Effizienz-Faktor-Neu'!B33 -> 68.82654116
T33: 30 | U33: ='Effizienz-Faktor-Neu'!C34 -> .300 WSM | V33: ='Effizienz-Faktor-Neu'!B34 -> 68.50757517
T34: 31 | U34: ='Effizienz-Faktor-Neu'!C35 -> 7mm-08 | V34: ='Effizienz-Faktor-Neu'!B35 -> 68.18372036
T35: 32 | U35: ='Effizienz-Faktor-Neu'!C36 -> .375 Remington Ultra Magnum | V35: ='Effizienz-Faktor-Neu'!B36 -> 67.68966147
T36: 33 | U36: ='Effizienz-Faktor-Neu'!C37 -> 7mm-08 | V36: ='Effizienz-Faktor-Neu'!B37 -> 67.44520423
T37: 34 | U37: ='Effizienz-Faktor-Neu'!C38 -> .416 Weatherby Magnum | V37: ='Effizienz-Faktor-Neu'!B38 -> 67.34377707
T38: 35 | U38: ='Effizienz-Faktor-Neu'!C39 -> .284 Winchester | V38: ='Effizienz-Faktor-Neu'!B39 -> 67.02214918
T39: 36 | U39: ='Effizienz-Faktor-Neu'!C40 -> .338 Lapua Magnum | V39: ='Effizienz-Faktor-Neu'!B40 -> 66.92837555
T40: 37 | U40: ='Effizienz-Faktor-Neu'!C41 -> 8x68S | V40: ='Effizienz-Faktor-Neu'!B41 -> 66.75538446
T41: 38 | U41: ='Effizienz-Faktor-Neu'!C42 -> .375 Remington Ultra Magnum | V41: ='Effizienz-Faktor-Neu'!B42 -> 66.56471031
T42: 39 | U42: ='Effizienz-Faktor-Neu'!C43 -> .375 Remington Ultra Magnum | V42: ='Effizienz-Faktor-Neu'!B43 -> 65.97020179
T43: 40 | U43: ='Effizienz-Faktor-Neu'!C44 -> .338 Lapua Magnum | V43: ='Effizienz-Faktor-Neu'!B44 -> 65.95343362
T44: 41 | U44: ='Effizienz-Faktor-Neu'!C45 -> 9,3x62 Drückjagd | V44: ='Effizienz-Faktor-Neu'!B45 -> 65.60350556
T45: 42 | U45: ='Effizienz-Faktor-Neu'!C46 -> .378 Weatherby Magnum | V45: ='Effizienz-Faktor-Neu'!B46 -> 65.51157895
T46: 43 | U46: ='Effizienz-Faktor-Neu'!C47 -> .338 Lapua Magnum | V46: ='Effizienz-Faktor-Neu'!B47 -> 65.20864157
T47: 44 | U47: ='Effizienz-Faktor-Neu'!C48 -> 9,3x62 | V47: ='Effizienz-Faktor-Neu'!B48 -> 65.06028404
T48: 45 | U48: ='Effizienz-Faktor-Neu'!C49 -> 8x64S | V48: ='Effizienz-Faktor-Neu'!B49 -> 64.91533294
T49: 46 | U49: ='Effizienz-Faktor-Neu'!C50 -> .338 Winchester Magnum | V49: ='Effizienz-Faktor-Neu'!B50 -> 64.13488073
T50: 47 | U50: ='Effizienz-Faktor-Neu'!C51 -> 9,3x62 | V50: ='Effizienz-Faktor-Neu'!B51 -> 63.55334312
T51: 48 | U51: ='Effizienz-Faktor-Neu'!C52 -> .338 Winchester Magnum | V51: ='Effizienz-Faktor-Neu'!B52 -> 63.02281266
T52: 49 | U52: ='Effizienz-Faktor-Neu'!C53 -> 8x57IS | V52: ='Effizienz-Faktor-Neu'!B53 -> 62.44204664
T53: 50 | U53: ='Effizienz-Faktor-Neu'!C54 -> 9,3x62 | V53: ='Effizienz-Faktor-Neu'!B54 -> 62.20563961
T54: 51 | U54: ='Effizienz-Faktor-Neu'!C55 -> 7x64 | V54: ='Effizienz-Faktor-Neu'!B55 -> 61.35203463
T55: 52 | U55: ='Effizienz-Faktor-Neu'!C56 -> 7x64 | V55: ='Effizienz-Faktor-Neu'!B56 -> 61.05813828
T56: 53 | U56: ='Effizienz-Faktor-Neu'!C57 -> .260 Remington | V56: ='Effizienz-Faktor-Neu'!B57 -> 60.85050588
T57: 54 | U57: ='Effizienz-Faktor-Neu'!C58 -> 10,3x74R | V57: ='Effizienz-Faktor-Neu'!B58 -> 60.77557502
T58: 55 | U58: ='Effizienz-Faktor-Neu'!C59 -> 7x64 | V58: ='Effizienz-Faktor-Neu'!B59 -> 60.39921576
T59: 56 | U59: ='Effizienz-Faktor-Neu'!C60 -> .260 Remington | V59: ='Effizienz-Faktor-Neu'!B60 -> 60.04070305
T60: 57 | U60: ='Effizienz-Faktor-Neu'!C61 -> 8x57IS | V60: ='Effizienz-Faktor-Neu'!B61 -> 59.73208993
T61: 58 | U61: ='Effizienz-Faktor-Neu'!C62 -> 7x64 | V61: ='Effizienz-Faktor-Neu'!B62 -> 59.73086857
T62: 59 | U62: ='Effizienz-Faktor-Neu'!C63 -> 7mm STW | V62: ='Effizienz-Faktor-Neu'!B63 -> 59.21266689
T63: 60 | U63: ='Effizienz-Faktor-Neu'!C64 -> 8x57IS | V63: ='Effizienz-Faktor-Neu'!B64 -> 58.81682904
T64: 61 | U64: ='Effizienz-Faktor-Neu'!C65 -> 8x57IS | V64: ='Effizienz-Faktor-Neu'!B65 -> 58.7348895
T65: 62 | U65: ='Effizienz-Faktor-Neu'!C66 -> 9,3x62 | V65: ='Effizienz-Faktor-Neu'!B66 -> 58.50666337
T66: 63 | U66: ='Effizienz-Faktor-Neu'!C67 -> 7,5x55 | V66: ='Effizienz-Faktor-Neu'!B67 -> 57.91896191
T67: 64 | U67: ='Effizienz-Faktor-Neu'!C68 -> .300 WSM | V67: ='Effizienz-Faktor-Neu'!B68 -> 57.77509949
T68: 65 | U68: ='Effizienz-Faktor-Neu'!C69 -> 7mm WSM | V68: ='Effizienz-Faktor-Neu'!B69 -> 57.3474132
T69: 66 | U69: ='Effizienz-Faktor-Neu'!C70 -> .260 Remington | V69: ='Effizienz-Faktor-Neu'!B70 -> 56.67921896
T70: 64 | U70: ='Effizienz-Faktor-Neu'!C71 -> 7mm WSM | V70: ='Effizienz-Faktor-Neu'!B71 -> 56.62902638
T71: 68 | U71: ='Effizienz-Faktor-Neu'!C72 -> 7mm Remington Magnum | V71: ='Effizienz-Faktor-Neu'!B72 -> 56.27589776
T72: 69 | U72: ='Effizienz-Faktor-Neu'!C73 -> 8x57IS | V72: ='Effizienz-Faktor-Neu'!B73 -> 55.9711669
T73: 70 | U73: ='Effizienz-Faktor-Neu'!C74 -> 8x57IS | V73: ='Effizienz-Faktor-Neu'!B74 -> 55.87144542
T74: 71 | U74: ='Effizienz-Faktor-Neu'!C75 -> 8mm Remington Magnum | V74: ='Effizienz-Faktor-Neu'!B75 -> 55.58110684
T75: 72 | U75: ='Effizienz-Faktor-Neu'!C76 -> 8x57IS | V75: ='Effizienz-Faktor-Neu'!B76 -> 55.1747025
T76: 73 | U76: ='Effizienz-Faktor-Neu'!C77 -> .270 Winchester | V76: ='Effizienz-Faktor-Neu'!B77 -> 55.14665363
T77: 74 | U77: ='Effizienz-Faktor-Neu'!C78 -> .300 WSM | V77: ='Effizienz-Faktor-Neu'!B78 -> 55.08005663
T78: 75 | U78: ='Effizienz-Faktor-Neu'!C79 -> 6,5x64 Brenneke | V78: ='Effizienz-Faktor-Neu'!B79 -> 54.83291991
T79: 76 | U79: ='Effizienz-Faktor-Neu'!C80 -> 7x64 | V79: ='Effizienz-Faktor-Neu'!B80 -> 54.26416195
T80: 77 | U80: ='Effizienz-Faktor-Neu'!C81 -> 6,5x64 Brenneke | V80: ='Effizienz-Faktor-Neu'!B81 -> 54.12263106
T81: 78 | U81: ='Effizienz-Faktor-Neu'!C82 -> .300 Winchester Magnum | V81: ='Effizienz-Faktor-Neu'!B82 -> 53.52683507
T82: 79 | U82: ='Effizienz-Faktor-Neu'!C83 -> 6,5x64 Brenneke | V82: ='Effizienz-Faktor-Neu'!B83 -> 53.42484458
T83: 80 | U83: ='Effizienz-Faktor-Neu'!C84 -> 7mm Weatherby Magnum | V83: ='Effizienz-Faktor-Neu'!B84 -> 52.71767424
T84: 81 | U84: ='Effizienz-Faktor-Neu'!C85 -> .300 Winchester Magnum | V84: ='Effizienz-Faktor-Neu'!B85 -> 52.39840316
T85: 82 | U85: ='Effizienz-Faktor-Neu'!C86 -> 7x57 | V85: ='Effizienz-Faktor-Neu'!B86 -> 52.228121
T86: 83 | U86: ='Effizienz-Faktor-Neu'!C87 -> .30-06 Springfield | V86: ='Effizienz-Faktor-Neu'!B87 -> 51.46192965
T87: 84 | U87: ='Effizienz-Faktor-Neu'!C88 -> .30-06 Springfield | V87: ='Effizienz-Faktor-Neu'!B88 -> 51.24644141
T88: 85 | U88: ='Effizienz-Faktor-Neu'!C89 -> 9,3x74R | V88: ='Effizienz-Faktor-Neu'!B89 -> 50.98222702
T89: 86 | U89: ='Effizienz-Faktor-Neu'!C90 -> .30-06 Springfield | V89: ='Effizienz-Faktor-Neu'!B90 -> 50.71250352
T90: 87 | U90: ='Effizienz-Faktor-Neu'!C91 -> 7,5x55 | V90: ='Effizienz-Faktor-Neu'!B91 -> 50.62058117
T91: 88 | U91: ='Effizienz-Faktor-Neu'!C92 -> 9,3x74R | V91: ='Effizienz-Faktor-Neu'!B92 -> 50.52110528
T92: 89 | U92: ='Effizienz-Faktor-Neu'!C93 -> 9,3x74R | V92: ='Effizienz-Faktor-Neu'!B93 -> 50.51822441
T93: 90 | U93: ='Effizienz-Faktor-Neu'!C94 -> 6,5x65 RWS | V93: ='Effizienz-Faktor-Neu'!B94 -> 50.23484755
T94: 91 | U94: ='Effizienz-Faktor-Neu'!C95 -> .30 R Blaser | V94: ='Effizienz-Faktor-Neu'!B95 -> 49.59752366
T95: 92 | U95: ='Effizienz-Faktor-Neu'!C96 -> 8x75RS | V95: ='Effizienz-Faktor-Neu'!B96 -> 49.4885666
T96: 93 | U96: ='Effizienz-Faktor-Neu'!C97 -> 7x66 SE von Hofe | V96: ='Effizienz-Faktor-Neu'!B97 -> 49.17046461
T97: 94 | U97: ='Effizienz-Faktor-Neu'!C98 -> 6,5-284Norma | V97: ='Effizienz-Faktor-Neu'!B98 -> 48.67591938
T98: 95 | U98: ='Effizienz-Faktor-Neu'!C99 -> .300 Weatherby Magnum | V98: ='Effizienz-Faktor-Neu'!B99 -> 48.61799429
T99: 96 | U99: ='Effizienz-Faktor-Neu'!C100 -> .270 Winchester | V99: ='Effizienz-Faktor-Neu'!B100 -> 48.59685946
T100: 97 | U100: ='Effizienz-Faktor-Neu'!C101 -> 7,5x55 | V100: ='Effizienz-Faktor-Neu'!B101 -> 48.56373857
T101: 98 | U101: ='Effizienz-Faktor-Neu'!C102 -> 8x75RS | V101: ='Effizienz-Faktor-Neu'!B102 -> 48.05240242
T102: 99 | U102: ='Effizienz-Faktor-Neu'!C103 -> 7x65R | V102: ='Effizienz-Faktor-Neu'!B103 -> 47.52629889
T103: 100 | U103: ='Effizienz-Faktor-Neu'!C104 -> 7x66 SE von Hofe | V103: ='Effizienz-Faktor-Neu'!B104 -> 47.13138422
T104: 101 | U104: ='Effizienz-Faktor-Neu'!C105 -> 6,5-284Norma | V104: ='Effizienz-Faktor-Neu'!B105 -> 46.94409622
T105: 102 | U105: ='Effizienz-Faktor-Neu'!C106 -> .300 Weatherby Magnum | V105: ='Effizienz-Faktor-Neu'!B106 -> 46.76650888
T106: 103 | U106: ='Effizienz-Faktor-Neu'!C107 -> 6,5x65 RWS | V106: ='Effizienz-Faktor-Neu'!B107 -> 46.6354803
T107: 104 | U107: ='Effizienz-Faktor-Neu'!C108 -> .300 Weatherby Magnum | V107: ='Effizienz-Faktor-Neu'!B108 -> 46.59511423
T108: 105 | U108: ='Effizienz-Faktor-Neu'!C109 -> 6,5x55 SE | V108: ='Effizienz-Faktor-Neu'!B109 -> 46.29299298
T109: 106 | U109: ='Effizienz-Faktor-Neu'!C110 -> 7,82 Warbird | V109: ='Effizienz-Faktor-Neu'!B110 -> 45.92174717
T110: 107 | U110: ='Effizienz-Faktor-Neu'!C111 -> 7,82 Warbird | V110: ='Effizienz-Faktor-Neu'!B111 -> 43.50514982
T111: 108 | U111: ='Effizienz-Faktor-Neu'!C112 -> 6,5x57 | V111: ='Effizienz-Faktor-Neu'!B112 -> 43.30956895
T112: 109 | U112: ='Effizienz-Faktor-Neu'!C113 -> 6,5x57 | V112: ='Effizienz-Faktor-Neu'!B113 -> 43.1660922
T113: 110 | U113: ='Effizienz-Faktor-Neu'!C114 -> 6,5x55 SE | V113: ='Effizienz-Faktor-Neu'!B114 -> 43.0167322
T114: 111 | U114: ='Effizienz-Faktor-Neu'!C115 -> 6,5x55 SE | V114: ='Effizienz-Faktor-Neu'!B115 -> 42.98437118
T115: 112 | U115: ='Effizienz-Faktor-Neu'!C116 -> 6,5x68 | V115: ='Effizienz-Faktor-Neu'!B116 -> 42.91048269
T116: 113 | U116: ='Effizienz-Faktor-Neu'!C117 -> 6,5x68 | V116: ='Effizienz-Faktor-Neu'!B117 -> 41.70456129
T117: 114 | U117: ='Effizienz-Faktor-Neu'!C118 -> .300 Weatherby Magnum | V117: ='Effizienz-Faktor-Neu'!B118 -> 41.60517424
T118: 115 | U118: ='Effizienz-Faktor-Neu'!C119 -> 10.3x60R | V118: ='Effizienz-Faktor-Neu'!B119 -> 39.23995981
T119: 116 | U119: ='Effizienz-Faktor-Neu'!C120 -> 10.3x60R | V119: ='Effizienz-Faktor-Neu'!B120 -> 39.23995981
T120: 117 | U120: ='Effizienz-Faktor-Neu'!C121 -> 8x57IRS | V120: ='Effizienz-Faktor-Neu'!B121 -> 38.95606172
T121: 118 | U121: ='Effizienz-Faktor-Neu'!C122 -> 6,5x68R | V121: ='Effizienz-Faktor-Neu'!B122 -> 36.04820539
T122: 119 | U122: ='Effizienz-Faktor-Neu'!C123 -> 10.3x60R | V122: ='Effizienz-Faktor-Neu'!B123 -> 35.30153745
T123: 120 | U123: ='Effizienz-Faktor-Neu'!C124 -> 10.3x60R | V123: ='Effizienz-Faktor-Neu'!B124 -> 35.16426556
T124: 121 | U124: ='Effizienz-Faktor-Neu'!C125 -> 6,5x68R | V124: ='Effizienz-Faktor-Neu'!B125 -> 34.74430813
T125: 122 | U125: ='Effizienz-Faktor-Neu'!C126 -> 10.3x60R | V125: ='Effizienz-Faktor-Neu'!B126 -> 34.59271663
T126: 123 | U126: ='Effizienz-Faktor-Neu'!C127 -> 10.3x60R | V126: ='Effizienz-Faktor-Neu'!B127 -> 34.58634854
T127: 124 | U127: ='Effizienz-Faktor-Neu'!C128 -> .416 Rigby | V127: ='Effizienz-Faktor-Neu'!B128 -> 33.64803163
T128: 125 | U128: ='Effizienz-Faktor-Neu'!C129 -> 6,5x57R | V128: ='Effizienz-Faktor-Neu'!B129 -> 31.87836533
T129: 126 | U129: ='Effizienz-Faktor-Neu'!C130 -> 6,5x57R | V129: ='Effizienz-Faktor-Neu'!B130 -> 31.32810463
T130: 127 | U130: ='Effizienz-Faktor-Neu'!C131 -> 10.3x60R | V130: ='Effizienz-Faktor-Neu'!B131 -> 30.0301191
T131: 128 | U131: ='Effizienz-Faktor-Neu'!C132 -> 10.3x60R | V131: ='Effizienz-Faktor-Neu'!B132 -> 28.99620482
T132: 129 | U132: ='Effizienz-Faktor-Neu'!C133 -> 10.3x60R | V132: ='Effizienz-Faktor-Neu'!B133 -> 27.83801587
T133: 130 | U133: ='Effizienz-Faktor-Neu'!C134 -> 10.3x60R | V133: ='Effizienz-Faktor-Neu'!B134 -> 27.44150682
T134: 131 | U134: ='Effizienz-Faktor-Neu'!C135 -> .500/416 NE | V134: ='Effizienz-Faktor-Neu'!B135 -> 27.02983303
T135: 132 | U135: ='Effizienz-Faktor-Neu'!C136 -> .500/416 NE | V135: ='Effizienz-Faktor-Neu'!B136 -> 27.00000568
T136: 133 | U136: ='Effizienz-Faktor-Neu'!C137 -> .500/416 NE | V136: ='Effizienz-Faktor-Neu'!B137 -> 26.07414774

Sheet Graphik-V° vs. TPL
U2: Copyright© by Gian-Marchet® 2008 Alle Rechte vorbehalten All Rights reserved
T4: 1 | U4: ='Effizienz-Faktor-Neu'!C137 -> .500/416 NE | V4: ='Effizienz-Faktor-Neu'!U137 -> 7.000245098
T5: 2 | U5: ='Effizienz-Faktor-Neu'!C136 -> .500/416 NE | V5: ='Effizienz-Faktor-Neu'!U136 -> 7.335539216
T6: 3 | U6: ='Effizienz-Faktor-Neu'!C135 -> .500/416 NE | V6: ='Effizienz-Faktor-Neu'!U135 -> 7.494377551
T7: 4 | U7: ='Effizienz-Faktor-Neu'!C119 -> 10.3x60R | V7: ='Effizienz-Faktor-Neu'!U119 -> 7.922535211
T8: 5 | U8: ='Effizienz-Faktor-Neu'!C120 -> 10.3x60R | V8: ='Effizienz-Faktor-Neu'!U120 -> 7.922535211
T9: 6 | U9: ='Effizienz-Faktor-Neu'!C126 -> 10.3x60R | V9: ='Effizienz-Faktor-Neu'!U126 -> 7.922535211
T10: 7 | U10: ='Effizienz-Faktor-Neu'!C123 -> 10.3x60R | V10: ='Effizienz-Faktor-Neu'!U123 -> 8.135503448
T11: 8 | U11: ='Effizienz-Faktor-Neu'!C128 -> .416 Rigby | V11: ='Effizienz-Faktor-Neu'!U128 -> 8.15880402
T12: 9 | U12: ='Effizienz-Faktor-Neu'!C29 -> 10,57 Meteor | V12: ='Effizienz-Faktor-Neu'!U29 -> 8.802083333
T13: 10 | U13: ='Effizienz-Faktor-Neu'!C127 -> 10.3x60R | V13: ='Effizienz-Faktor-Neu'!U127 -> 8.867045455
T14: 11 | U14: ='Effizienz-Faktor-Neu'!C46 -> .378 Weatherby Magnum | V14: ='Effizienz-Faktor-Neu'!U46 -> 9.060377358
T15: 12 | U15: ='Effizienz-Faktor-Neu'!C38 -> .416 Weatherby Magnum | V15: ='Effizienz-Faktor-Neu'!U38 -> 9.082798165
T16: 13 | U16: ='Effizienz-Faktor-Neu'!C132 -> 10.3x60R | V16: ='Effizienz-Faktor-Neu'!U132 -> 9.129259259
T17: 14 | U17: ='Effizienz-Faktor-Neu'!C133 -> 10.3x60R | V17: ='Effizienz-Faktor-Neu'!U133 -> 9.201191176
T18: 15 | U18: ='Effizienz-Faktor-Neu'!C42 -> .375 Remington Ultra Magnum | V18: ='Effizienz-Faktor-Neu'!U42 -> 9.390670157
T19: 16 | U19: ='Effizienz-Faktor-Neu'!C28 -> 10,57 Meteor | V19: ='Effizienz-Faktor-Neu'!U28 -> 9.415686275
T20: 17 | U20: ='Effizienz-Faktor-Neu'!C43 -> .375 Remington Ultra Magnum | V20: ='Effizienz-Faktor-Neu'!U43 -> 9.432142077
T21: 18 | U21: ='Effizienz-Faktor-Neu'!C22 -> .416 Remington Magnum | V21: ='Effizienz-Faktor-Neu'!U22 -> 9.523546512
T22: 19 | U22: ='Effizienz-Faktor-Neu'!C11 -> .416 Remington Magnum | V22: ='Effizienz-Faktor-Neu'!U11 -> 9.569536424
T23: 20 | U23: ='Effizienz-Faktor-Neu'!C36 -> .375 Remington Ultra Magnum | V23: ='Effizienz-Faktor-Neu'!U36 -> 9.598055249
T24: 21 | U24: ='Effizienz-Faktor-Neu'!C32 -> .378 Weatherby Magnum | V24: ='Effizienz-Faktor-Neu'!U32 -> 9.638761468
T25: 22 | U25: ='Effizienz-Faktor-Neu'!C124 -> 10.3x60R | V25: ='Effizienz-Faktor-Neu'!U124 -> 9.718222222
T26: 23 | U26: ='Effizienz-Faktor-Neu'!C26 -> .375 Ruger | V26: ='Effizienz-Faktor-Neu'!U26 -> 9.838153846
T27: 24 | U27: ='Effizienz-Faktor-Neu'!C134 -> 10.3x60R | V27: ='Effizienz-Faktor-Neu'!U134 -> 9.91810687
T28: 25 | U28: ='Effizienz-Faktor-Neu'!C16 -> .416 Remington Magnum | V28: ='Effizienz-Faktor-Neu'!U16 -> 9.988109756
T29: 26 | U29: ='Effizienz-Faktor-Neu'!C20 -> .416 Remington Magnum | V29: ='Effizienz-Faktor-Neu'!U20 -> 10.043
T30: 27 | U30: ='Effizienz-Faktor-Neu'!C58 -> 10,3x74R | V30: ='Effizienz-Faktor-Neu'!U58 -> 10.15858209
T31: 28 | U31: ='Effizienz-Faktor-Neu'!C10 -> .416 Taylor | V31: ='Effizienz-Faktor-Neu'!U10 -> 10.38143284
T32: 29 | U32: ='Effizienz-Faktor-Neu'!C9 -> .416 Taylor | V32: ='Effizienz-Faktor-Neu'!U9 -> 10.39441429
T33: 30 | U33: ='Effizienz-Faktor-Neu'!C8 -> 10,3x72 Gian-Marchet® | V33: ='Effizienz-Faktor-Neu'!U8 -> 10.46486486
T34: 31 | U34: ='Effizienz-Faktor-Neu'!C24 -> .375 Ruger | V34: ='Effizienz-Faktor-Neu'!U24 -> 10.584
T35: 32 | U35: ='Effizienz-Faktor-Neu'!C12 -> .375 Holland & Holland Magnum | V35: ='Effizienz-Faktor-Neu'!U12 -> 10.64172662
T36: 33 | U36: ='Effizienz-Faktor-Neu'!C19 -> 10,3x72 Gian-Marchet® | V36: ='Effizienz-Faktor-Neu'!U19 -> 10.65649315
T37: 34 | U37: ='Effizienz-Faktor-Neu'!C13 -> .375 Holland & Holland Magnum | V37: ='Effizienz-Faktor-Neu'!U13 -> 10.69090909
T38: 35 | U38: ='Effizienz-Faktor-Neu'!C131 -> 10.3x60R | V38: ='Effizienz-Faktor-Neu'!U131 -> 10.72544643
T39: 36 | U39: ='Effizienz-Faktor-Neu'!C17 -> .375 Holland & Holland Magnum | V39: ='Effizienz-Faktor-Neu'!U17 -> 10.7834507
T40: 37 | U40: ='Effizienz-Faktor-Neu'!C5 -> .416/323 Gian-Marchet® | V40: ='Effizienz-Faktor-Neu'!U5 -> 11.06181818
T41: 38 | U41: ='Effizienz-Faktor-Neu'!C45 -> 9,3x62 Drückjagd | V41: ='Effizienz-Faktor-Neu'!U45 -> 11.46685217
T42: 39 | U42: ='Effizienz-Faktor-Neu'!C47 -> .338 Lapua Magnum | V42: ='Effizienz-Faktor-Neu'!U47 -> 11.47301053
T43: 40 | U43: ='Effizienz-Faktor-Neu'!C40 -> .338 Lapua Magnum | V43: ='Effizienz-Faktor-Neu'!U40 -> 11.50031868
T44: 41 | U44: ='Effizienz-Faktor-Neu'!C89 -> 9,3x74R | V44: ='Effizienz-Faktor-Neu'!U89 -> 11.56481667
T45: 42 | U45: ='Effizienz-Faktor-Neu'!C44 -> .338 Lapua Magnum | V45: ='Effizienz-Faktor-Neu'!U44 -> 11.67361111
T46: 43 | U46: ='Effizienz-Faktor-Neu'!C93 -> 9,3x74R | V46: ='Effizienz-Faktor-Neu'!U93 -> 11.80301786
T47: 44 | U47: ='Effizienz-Faktor-Neu'!C18 -> .338 Winchester Magnum | V47: ='Effizienz-Faktor-Neu'!U18 -> 11.90812857
T48: 45 | U48: ='Effizienz-Faktor-Neu'!C66 -> 9,3x62 | V48: ='Effizienz-Faktor-Neu'!U66 -> 11.91837607
T49: 46 | U49: ='Effizienz-Faktor-Neu'!C7 -> .376 Steyr | V49: ='Effizienz-Faktor-Neu'!U7 -> 11.95501887
T50: 47 | U50: ='Effizienz-Faktor-Neu'!C54 -> 9,3x62 | V50: ='Effizienz-Faktor-Neu'!U54 -> 12.00154341
T51: 48 | U51: ='Effizienz-Faktor-Neu'!C15 -> 9,3x64 | V51: ='Effizienz-Faktor-Neu'!U15 -> 12.12552518
T52: 49 | U52: ='Effizienz-Faktor-Neu'!C14 -> 9,3x64 | V52: ='Effizienz-Faktor-Neu'!U14 -> 12.1968
T53: 50 | U53: ='Effizienz-Faktor-Neu'!C92 -> 9,3x74R | V53: ='Effizienz-Faktor-Neu'!U92 -> 12.24016667
T54: 51 | U54: ='Effizienz-Faktor-Neu'!C48 -> 9,3x62 | V54: ='Effizienz-Faktor-Neu'!U48 -> 12.26351351
T55: 52 | U55: ='Effizienz-Faktor-Neu'!C118 -> .300 Weatherby Magnum | V55: ='Effizienz-Faktor-Neu'!U118 -> 12.33604651
T56: 53 | U56: ='Effizienz-Faktor-Neu'!C51 -> 9,3x62 | V56: ='Effizienz-Faktor-Neu'!U51 -> 12.39025424
T57: 54 | U57: ='Effizienz-Faktor-Neu'!C75 -> 8mm Remington Magnum | V57: ='Effizienz-Faktor-Neu'!U75 -> 12.52864052
T58: 55 | U58: ='Effizienz-Faktor-Neu'!C111 -> 7,82 Warbird | V58: ='Effizienz-Faktor-Neu'!U111 -> 12.61747573
T59: 56 | U59: ='Effizienz-Faktor-Neu'!C6 -> .416/323 Gian-Marchet® | V59: ='Effizienz-Faktor-Neu'!U6 -> 12.68342048
T60: 57 | U60: ='Effizienz-Faktor-Neu'!C25 -> 8x68S | V60: ='Effizienz-Faktor-Neu'!U25 -> 12.89928169
T61: 58 | U61: ='Effizienz-Faktor-Neu'!C23 -> 9,3x64 | V61: ='Effizienz-Faktor-Neu'!U23 -> 12.93888235
T62: 59 | U62: ='Effizienz-Faktor-Neu'!C41 -> 8x68S | V62: ='Effizienz-Faktor-Neu'!U41 -> 12.93888235
T63: 60 | U63: ='Effizienz-Faktor-Neu'!C52 -> .338 Winchester Magnum | V63: ='Effizienz-Faktor-Neu'!U52 -> 12.98368504
T64: 61 | U64: ='Effizienz-Faktor-Neu'!C102 -> 8x75RS | V64: ='Effizienz-Faktor-Neu'!U102 -> 13.00039683
T65: 62 | U65: ='Effizienz-Faktor-Neu'!C33 -> .300 Weatherby Magnum | V65: ='Effizienz-Faktor-Neu'!U33 -> 13.07555707
T66: 63 | U66: ='Effizienz-Faktor-Neu'!C50 -> .338 Winchester Magnum | V66: ='Effizienz-Faktor-Neu'!U50 -> 13.12707087
T67: 64 | U67: ='Effizienz-Faktor-Neu'!C110 -> 7,82 Warbird | V67: ='Effizienz-Faktor-Neu'!U110 -> 13.24526633
T68: 65 | U68: ='Effizienz-Faktor-Neu'!C96 -> 8x75RS | V68: ='Effizienz-Faktor-Neu'!U96 -> 13.54017094
T69: 66 | U69: ='Effizienz-Faktor-Neu'!C49 -> 8x64S | V69: ='Effizienz-Faktor-Neu'!U49 -> 13.60001887
T70: 64 | U70: ='Effizienz-Faktor-Neu'!C121 -> 8x57IRS | V70: ='Effizienz-Faktor-Neu'!U121 -> 13.74450526
T71: 68 | U71: ='Effizienz-Faktor-Neu'!C106 -> .300 Weatherby Magnum | V71: ='Effizienz-Faktor-Neu'!U106 -> 13.79052
T72: 69 | U72: ='Effizienz-Faktor-Neu'!C108 -> .300 Weatherby Magnum | V72: ='Effizienz-Faktor-Neu'!U108 -> 13.79665823
T73: 70 | U73: ='Effizienz-Faktor-Neu'!C63 -> 7mm STW | V73: ='Effizienz-Faktor-Neu'!U63 -> 13.8320122
T74: 71 | U74: ='Effizienz-Faktor-Neu'!C53 -> 8x57IS | V74: ='Effizienz-Faktor-Neu'!U53 -> 13.85018182
T75: 72 | U75: ='Effizienz-Faktor-Neu'!C31 -> 8x64S | V75: ='Effizienz-Faktor-Neu'!U31 -> 13.89423077
T76: 73 | U76: ='Effizienz-Faktor-Neu'!C104 -> 7x66 SE von Hofe | V76: ='Effizienz-Faktor-Neu'!U104 -> 14.00032051
T77: 74 | U77: ='Effizienz-Faktor-Neu'!C74 -> 8x57IS | V77: ='Effizienz-Faktor-Neu'!U74 -> 14.13910891
T78: 75 | U78: ='Effizienz-Faktor-Neu'!C99 -> .300 Weatherby Magnum | V78: ='Effizienz-Faktor-Neu'!U99 -> 14.33648649
T79: 76 | U79: ='Effizienz-Faktor-Neu'!C34 -> .300 WSM | V79: ='Effizienz-Faktor-Neu'!U34 -> 14.64781395
T80: 77 | U80: ='Effizienz-Faktor-Neu'!C100 -> .270 Winchester | V80: ='Effizienz-Faktor-Neu'!U100 -> 14.67479675
T81: 78 | U81: ='Effizienz-Faktor-Neu'!C76 -> 8x57IS | V81: ='Effizienz-Faktor-Neu'!U76 -> 14.68898
T82: 79 | U82: ='Effizienz-Faktor-Neu'!C97 -> 7x66 SE von Hofe | V82: ='Effizienz-Faktor-Neu'!U97 -> 14.71411921
T83: 80 | U83: ='Effizienz-Faktor-Neu'!C73 -> 8x57IS | V83: ='Effizienz-Faktor-Neu'!U73 -> 14.83188285
T84: 81 | U84: ='Effizienz-Faktor-Neu'!C61 -> 8x57IS | V84: ='Effizienz-Faktor-Neu'!U61 -> 14.88493069
T85: 82 | U85: ='Effizienz-Faktor-Neu'!C65 -> 8x57IS | V85: ='Effizienz-Faktor-Neu'!U65 -> 14.91887755
T86: 83 | U86: ='Effizienz-Faktor-Neu'!C101 -> 7,5x55 | V86: ='Effizienz-Faktor-Neu'!U101 -> 15.05218018
T87: 84 | U87: ='Effizienz-Faktor-Neu'!C125 -> 6,5x68R | V87: ='Effizienz-Faktor-Neu'!U125 -> 15.05418321
T88: 85 | U88: ='Effizienz-Faktor-Neu'!C85 -> .300 Winchester Magnum | V88: ='Effizienz-Faktor-Neu'!U85 -> 15.09780451
T89: 86 | U89: ='Effizienz-Faktor-Neu'!C117 -> 6,5x68 | V89: ='Effizienz-Faktor-Neu'!U117 -> 15.2647482
T90: 87 | U90: ='Effizienz-Faktor-Neu'!C122 -> 6,5x68R | V90: ='Effizienz-Faktor-Neu'!U122 -> 15.40680597
T91: 88 | U91: ='Effizienz-Faktor-Neu'!C91 -> 7,5x55 | V91: ='Effizienz-Faktor-Neu'!U91 -> 15.50416667
T92: 89 | U92: ='Effizienz-Faktor-Neu'!C82 -> .300 Winchester Magnum | V92: ='Effizienz-Faktor-Neu'!U82 -> 15.55321805
T93: 90 | U93: ='Effizienz-Faktor-Neu'!C64 -> 8x57IS | V93: ='Effizienz-Faktor-Neu'!U64 -> 15.5537234
T94: 91 | U94: ='Effizienz-Faktor-Neu'!C78 -> .300 WSM | V94: ='Effizienz-Faktor-Neu'!U78 -> 15.57632399
T95: 92 | U95: ='Effizienz-Faktor-Neu'!C84 -> 7mm Weatherby Magnum | V95: ='Effizienz-Faktor-Neu'!U84 -> 15.68097015
T96: 93 | U96: ='Effizienz-Faktor-Neu'!C116 -> 6,5x68 | V96: ='Effizienz-Faktor-Neu'!U116 -> 15.70614085
T97: 94 | U97: ='Effizienz-Faktor-Neu'!C87 -> .30-06 Springfield | V97: ='Effizienz-Faktor-Neu'!U87 -> 15.80154128
T98: 95 | U98: ='Effizienz-Faktor-Neu'!C72 -> 7mm Remington Magnum | V98: ='Effizienz-Faktor-Neu'!U72 -> 15.93658537
T99: 96 | U99: ='Effizienz-Faktor-Neu'!C69 -> 7mm WSM | V99: ='Effizienz-Faktor-Neu'!U69 -> 15.9375748
T100: 97 | U100: ='Effizienz-Faktor-Neu'!C67 -> 7,5x55 | V100: ='Effizienz-Faktor-Neu'!U67 -> 16.05931373
T101: 98 | U101: ='Effizienz-Faktor-Neu'!C88 -> .30-06 Springfield | V101: ='Effizienz-Faktor-Neu'!U88 -> 16.09965455
T102: 99 | U102: ='Effizienz-Faktor-Neu'!C95 -> .30 R Blaser | V102: ='Effizienz-Faktor-Neu'!U95 -> 16.21668376
T103: 100 | U103: ='Effizienz-Faktor-Neu'!C68 -> .300 WSM | V103: ='Effizienz-Faktor-Neu'!U68 -> 16.32316129
T104: 101 | U104: ='Effizienz-Faktor-Neu'!C90 -> .30-06 Springfield | V104: ='Effizienz-Faktor-Neu'!U90 -> 16.33728782
T105: 102 | U105: ='Effizienz-Faktor-Neu'!C77 -> .270 Winchester | V105: ='Effizienz-Faktor-Neu'!U77 -> 16.36296296
T106: 103 | U106: ='Effizienz-Faktor-Neu'!C71 -> 7mm WSM | V106: ='Effizienz-Faktor-Neu'!U71 -> 16.39695868
T107: 104 | U107: ='Effizienz-Faktor-Neu'!C103 -> 7x65R | V107: ='Effizienz-Faktor-Neu'!U103 -> 16.67169811
T108: 105 | U108: ='Effizienz-Faktor-Neu'!C59 -> 7x64 | V108: ='Effizienz-Faktor-Neu'!U59 -> 16.97586916
T109: 106 | U109: ='Effizienz-Faktor-Neu'!C62 -> 7x64 | V109: ='Effizienz-Faktor-Neu'!U62 -> 17.08992079
T110: 107 | U110: ='Effizienz-Faktor-Neu'!C80 -> 7x64 | V110: ='Effizienz-Faktor-Neu'!U80 -> 17.26422018
T111: 108 | U111: ='Effizienz-Faktor-Neu'!C107 -> 6,5x65 RWS | V111: ='Effizienz-Faktor-Neu'!U107 -> 17.40378947
T112: 109 | U112: ='Effizienz-Faktor-Neu'!C55 -> 7x64 | V112: ='Effizienz-Faktor-Neu'!U55 -> 17.57156436
T113: 110 | U113: ='Effizienz-Faktor-Neu'!C56 -> 7x64 | V113: ='Effizienz-Faktor-Neu'!U56 -> 17.70962
T114: 111 | U114: ='Effizienz-Faktor-Neu'!C129 -> 6,5x57R | V114: ='Effizienz-Faktor-Neu'!U129 -> 17.96450575
T115: 112 | U115: ='Effizienz-Faktor-Neu'!C39 -> .284 Winchester | V115: ='Effizienz-Faktor-Neu'!U39 -> 17.99430612
T116: 113 | U116: ='Effizienz-Faktor-Neu'!C113 -> 6,5x57 | V116: ='Effizienz-Faktor-Neu'!U113 -> 18.05
T117: 114 | U117: ='Effizienz-Faktor-Neu'!C86 -> 7x57 | V117: ='Effizienz-Faktor-Neu'!U86 -> 18.12080537
T118: 115 | U118: ='Effizienz-Faktor-Neu'!C94 -> 6,5x65 RWS | V118: ='Effizienz-Faktor-Neu'!U94 -> 18.2182
T119: 116 | U119: ='Effizienz-Faktor-Neu'!C81 -> 6,5x64 Brenneke | V119: ='Effizienz-Faktor-Neu'!U81 -> 18.37066667
T120: 117 | U120: ='Effizienz-Faktor-Neu'!C115 -> 6,5x55 SE | V120: ='Effizienz-Faktor-Neu'!U115 -> 18.40909091
T121: 118 | U121: ='Effizienz-Faktor-Neu'!C21 -> .308 Winchester | V121: ='Effizienz-Faktor-Neu'!U21 -> 18.42093023
T122: 119 | U122: ='Effizienz-Faktor-Neu'!C83 -> 6,5x64 Brenneke | V122: ='Effizienz-Faktor-Neu'!U83 -> 18.50694231
T123: 120 | U123: ='Effizienz-Faktor-Neu'!C112 -> 6,5x57 | V123: ='Effizienz-Faktor-Neu'!U112 -> 18.60210526
T124: 121 | U124: ='Effizienz-Faktor-Neu'!C105 -> 6,5-284Norma | V124: ='Effizienz-Faktor-Neu'!U105 -> 18.6168972
T125: 122 | U125: ='Effizienz-Faktor-Neu'!C130 -> 6,5x57R | V125: ='Effizienz-Faktor-Neu'!U130 -> 18.64595062
T126: 123 | U126: ='Effizienz-Faktor-Neu'!C27 -> .308 Winchester | V126: ='Effizienz-Faktor-Neu'!U27 -> 18.66024096
T127: 124 | U127: ='Effizienz-Faktor-Neu'!C79 -> 6,5x64 Brenneke | V127: ='Effizienz-Faktor-Neu'!U79 -> 18.69158879
T128: 125 | U128: ='Effizienz-Faktor-Neu'!C98 -> 6,5-284Norma | V128: ='Effizienz-Faktor-Neu'!U98 -> 18.9790297
T129: 126 | U129: ='Effizienz-Faktor-Neu'!C30 -> 7mm-08 | V129: ='Effizienz-Faktor-Neu'!U30 -> 19.12966265
T130: 127 | U130: ='Effizienz-Faktor-Neu'!C114 -> 6,5x55 SE | V130: ='Effizienz-Faktor-Neu'!U114 -> 19.73554217
T131: 128 | U131: ='Effizienz-Faktor-Neu'!C70 -> .260 Remington | V131: ='Effizienz-Faktor-Neu'!U70 -> 19.78562353
T132: 129 | U132: ='Effizienz-Faktor-Neu'!C37 -> 7mm-08 | V132: ='Effizienz-Faktor-Neu'!U37 -> 19.91842105
T133: 130 | U133: ='Effizienz-Faktor-Neu'!C109 -> 6,5x55 SE | V133: ='Effizienz-Faktor-Neu'!U109 -> 20
T134: 131 | U134: ='Effizienz-Faktor-Neu'!C35 -> 7mm-08 | V134: ='Effizienz-Faktor-Neu'!U35 -> 20.205025
T135: 132 | U135: ='Effizienz-Faktor-Neu'!C60 -> .260 Remington | V135: ='Effizienz-Faktor-Neu'!U60 -> 20.9897284
T136: 133 | U136: ='Effizienz-Faktor-Neu'!C57 -> .260 Remington | V136: ='Effizienz-Faktor-Neu'!U57 -> 21.2521

Sheet Graphik Brennraum vs. Gasdruck
U2: Copyright© by Gian-Marchet® 2008 Alle Rechte vorbehalten All Rights reserved
T4: 1 | U4: ='Effizienz-Faktor-Neu'!C134 -> 10.3x60R | V4: ='Effizienz-Faktor-Neu'!T134 -> 3171.927402
T5: 2 | U5: ='Effizienz-Faktor-Neu'!C131 -> 10.3x60R | V5: ='Effizienz-Faktor-Neu'!T131 -> 3190.83606
T6: 3 | U6: ='Effizienz-Faktor-Neu'!C133 -> 10.3x60R | V6: ='Effizienz-Faktor-Neu'!T133 -> 3316.887678
T7: 4 | U7: ='Effizienz-Faktor-Neu'!C132 -> 10.3x60R | V7: ='Effizienz-Faktor-Neu'!T132 -> 3398.493645
T8: 5 | U8: ='Effizienz-Faktor-Neu'!C135 -> .500/416 NE | V8: ='Effizienz-Faktor-Neu'!T135 -> 3516.499
T9: 6 | U9: ='Effizienz-Faktor-Neu'!C136 -> .500/416 NE | V9: ='Effizienz-Faktor-Neu'!T136 -> 3552.405281
T10: 7 | U10: ='Effizienz-Faktor-Neu'!C137 -> .500/416 NE | V10: ='Effizienz-Faktor-Neu'!T137 -> 3573.592589
T11: 8 | U11: ='Effizienz-Faktor-Neu'!C124 -> 10.3x60R | V11: ='Effizienz-Faktor-Neu'!T124 -> 3627.362975
T12: 9 | U12: ='Effizienz-Faktor-Neu'!C130 -> 6,5x57R | V12: ='Effizienz-Faktor-Neu'!T130 -> 3741.831033
T13: 10 | U13: ='Effizienz-Faktor-Neu'!C128 -> .416 Rigby | V13: ='Effizienz-Faktor-Neu'!T128 -> 3760.305951
T14: 11 | U14: ='Effizienz-Faktor-Neu'!C127 -> 10.3x60R | V14: ='Effizienz-Faktor-Neu'!T127 -> 3766.140715
T15: 12 | U15: ='Effizienz-Faktor-Neu'!C129 -> 6,5x57R | V15: ='Effizienz-Faktor-Neu'!T129 -> 3845.472962
T16: 13 | U16: ='Effizienz-Faktor-Neu'!C121 -> 8x57IRS | V16: ='Effizienz-Faktor-Neu'!T121 -> 3872.50569
T17: 14 | U17: ='Effizienz-Faktor-Neu'!C123 -> 10.3x60R | V17: ='Effizienz-Faktor-Neu'!T123 -> 3972.265299
T18: 15 | U18: ='Effizienz-Faktor-Neu'!C126 -> 10.3x60R | V18: ='Effizienz-Faktor-Neu'!T126 -> 3984.684117
T19: 16 | U19: ='Effizienz-Faktor-Neu'!C119 -> 10.3x60R | V19: ='Effizienz-Faktor-Neu'!T119 -> 4243.906831
T20: 17 | U20: ='Effizienz-Faktor-Neu'!C120 -> 10.3x60R | V20: ='Effizienz-Faktor-Neu'!T120 -> 4243.906831
T21: 18 | U21: ='Effizienz-Faktor-Neu'!C114 -> 6,5x55 SE | V21: ='Effizienz-Faktor-Neu'!T114 -> 4261.902931
T22: 19 | U22: ='Effizienz-Faktor-Neu'!C92 -> 9,3x74R | V22: ='Effizienz-Faktor-Neu'!T92 -> 4364.62268
T23: 20 | U23: ='Effizienz-Faktor-Neu'!C125 -> 6,5x68R | V23: ='Effizienz-Faktor-Neu'!T125 -> 4385.535314
T24: 21 | U24: ='Effizienz-Faktor-Neu'!C109 -> 6,5x55 SE | V24: ='Effizienz-Faktor-Neu'!T109 -> 4391.895613
T25: 22 | U25: ='Effizienz-Faktor-Neu'!C96 -> 8x75RS | V25: ='Effizienz-Faktor-Neu'!T96 -> 4397.536591
T26: 23 | U26: ='Effizienz-Faktor-Neu'!C112 -> 6,5x57 | V26: ='Effizienz-Faktor-Neu'!T112 -> 4404.739803
T27: 24 | U27: ='Effizienz-Faktor-Neu'!C115 -> 6,5x55 SE | V27: ='Effizienz-Faktor-Neu'!T115 -> 4411.116163
T28: 25 | U28: ='Effizienz-Faktor-Neu'!C122 -> 6,5x68R | V28: ='Effizienz-Faktor-Neu'!T122 -> 4415.652566
T29: 26 | U29: ='Effizienz-Faktor-Neu'!C102 -> 8x75RS | V29: ='Effizienz-Faktor-Neu'!T102 -> 4422.301479
T30: 27 | U30: ='Effizienz-Faktor-Neu'!C101 -> 7,5x55 | V30: ='Effizienz-Faktor-Neu'!T101 -> 4444.459361
T31: 28 | U31: ='Effizienz-Faktor-Neu'!C93 -> 9,3x74R | V31: ='Effizienz-Faktor-Neu'!T93 -> 4444.587452
T32: 29 | U32: ='Effizienz-Faktor-Neu'!C76 -> 8x57IS | V32: ='Effizienz-Faktor-Neu'!T76 -> 4458.032992
T33: 30 | U33: ='Effizienz-Faktor-Neu'!C113 -> 6,5x57 | V33: ='Effizienz-Faktor-Neu'!T113 -> 4464.184558
T34: 31 | U34: ='Effizienz-Faktor-Neu'!C73 -> 8x57IS | V34: ='Effizienz-Faktor-Neu'!T73 -> 4468.411238
T35: 32 | U35: ='Effizienz-Faktor-Neu'!C91 -> 7,5x55 | V35: ='Effizienz-Faktor-Neu'!T91 -> 4470.971862
T36: 33 | U36: ='Effizienz-Faktor-Neu'!C64 -> 8x57IS | V36: ='Effizienz-Faktor-Neu'!T64 -> 4473.039318
T37: 34 | U37: ='Effizienz-Faktor-Neu'!C89 -> 9,3x74R | V37: ='Effizienz-Faktor-Neu'!T89 -> 4510.700315
T38: 35 | U38: ='Effizienz-Faktor-Neu'!C95 -> .30 R Blaser | V38: ='Effizienz-Faktor-Neu'!T95 -> 4515.473972
T39: 36 | U39: ='Effizienz-Faktor-Neu'!C103 -> 7x65R | V39: ='Effizienz-Faktor-Neu'!T103 -> 4539.558924
T40: 37 | U40: ='Effizienz-Faktor-Neu'!C90 -> .30-06 Springfield | V40: ='Effizienz-Faktor-Neu'!T90 -> 4549.062626
T41: 38 | U41: ='Effizienz-Faktor-Neu'!C65 -> 8x57IS | V41: ='Effizienz-Faktor-Neu'!T65 -> 4564.036419
T42: 39 | U42: ='Effizienz-Faktor-Neu'!C86 -> 7x57 | V42: ='Effizienz-Faktor-Neu'!T86 -> 4564.571685
T43: 40 | U43: ='Effizienz-Faktor-Neu'!C74 -> 8x57IS | V43: ='Effizienz-Faktor-Neu'!T74 -> 4572.492813
T44: 41 | U44: ='Effizienz-Faktor-Neu'!C105 -> 6,5-284Norma | V44: ='Effizienz-Faktor-Neu'!T105 -> 4584.016982
T45: 42 | U45: ='Effizienz-Faktor-Neu'!C88 -> .30-06 Springfield | V45: ='Effizienz-Faktor-Neu'!T88 -> 4606.5729
T46: 43 | U46: ='Effizienz-Faktor-Neu'!C61 -> 8x57IS | V46: ='Effizienz-Faktor-Neu'!T61 -> 4607.862856
T47: 44 | U47: ='Effizienz-Faktor-Neu'!C98 -> 6,5-284Norma | V47: ='Effizienz-Faktor-Neu'!T98 -> 4623.059211
T48: 45 | U48: ='Effizienz-Faktor-Neu'!C87 -> .30-06 Springfield | V48: ='Effizienz-Faktor-Neu'!T87 -> 4659.589723
T49: 46 | U49: ='Effizienz-Faktor-Neu'!C58 -> 10,3x74R | V49: ='Effizienz-Faktor-Neu'!T58 -> 4664.248109
T50: 47 | U50: ='Effizienz-Faktor-Neu'!C67 -> 7,5x55 | V50: ='Effizienz-Faktor-Neu'!T67 -> 4699.043667
T51: 48 | U51: ='Effizienz-Faktor-Neu'!C107 -> 6,5x65 RWS | V51: ='Effizienz-Faktor-Neu'!T107 -> 4725.477432
T52: 49 | U52: ='Effizienz-Faktor-Neu'!C118 -> .300 Weatherby Magnum | V52: ='Effizienz-Faktor-Neu'!T118 -> 4741.765188
T53: 50 | U53: ='Effizienz-Faktor-Neu'!C108 -> .300 Weatherby Magnum | V53: ='Effizienz-Faktor-Neu'!T108 -> 4745.015199
T54: 51 | U54: ='Effizienz-Faktor-Neu'!C99 -> .300 Weatherby Magnum | V54: ='Effizienz-Faktor-Neu'!T99 -> 4754.792016
T55: 52 | U55: ='Effizienz-Faktor-Neu'!C106 -> .300 Weatherby Magnum | V55: ='Effizienz-Faktor-Neu'!T106 -> 4754.792016
T56: 53 | U56: ='Effizienz-Faktor-Neu'!C66 -> 9,3x62 | V56: ='Effizienz-Faktor-Neu'!T66 -> 4759.902667
T57: 54 | U57: ='Effizienz-Faktor-Neu'!C80 -> 7x64 | V57: ='Effizienz-Faktor-Neu'!T80 -> 4766.720044
T58: 55 | U58: ='Effizienz-Faktor-Neu'!C116 -> 6,5x68 | V58: ='Effizienz-Faktor-Neu'!T116 -> 4771.515435
T59: 56 | U59: ='Effizienz-Faktor-Neu'!C117 -> 6,5x68 | V59: ='Effizienz-Faktor-Neu'!T117 -> 4771.515435
T60: 57 | U60: ='Effizienz-Faktor-Neu'!C52 -> .338 Winchester Magnum | V60: ='Effizienz-Faktor-Neu'!T52 -> 4788.766591
T61: 58 | U61: ='Effizienz-Faktor-Neu'!C82 -> .300 Winchester Magnum | V61: ='Effizienz-Faktor-Neu'!T82 -> 4789.939442
T62: 59 | U62: ='Effizienz-Faktor-Neu'!C94 -> 6,5x65 RWS | V62: ='Effizienz-Faktor-Neu'!T94 -> 4793.571268
T63: 60 | U63: ='Effizienz-Faktor-Neu'!C111 -> 7,82 Warbird | V63: ='Effizienz-Faktor-Neu'!T111 -> 4794.446378
T64: 61 | U64: ='Effizienz-Faktor-Neu'!C50 -> .338 Winchester Magnum | V64: ='Effizienz-Faktor-Neu'!T50 -> 4804.376074
T65: 62 | U65: ='Effizienz-Faktor-Neu'!C110 -> 7,82 Warbird | V65: ='Effizienz-Faktor-Neu'!T110 -> 4807.654219
T66: 63 | U66: ='Effizienz-Faktor-Neu'!C85 -> .300 Winchester Magnum | V66: ='Effizienz-Faktor-Neu'!T85 -> 4810.126497
T67: 64 | U67: ='Effizienz-Faktor-Neu'!C75 -> 8mm Remington Magnum | V67: ='Effizienz-Faktor-Neu'!T75 -> 4844.85428
T68: 65 | U68: ='Effizienz-Faktor-Neu'!C78 -> .300 WSM | V68: ='Effizienz-Faktor-Neu'!T78 -> 4855.333587
T69: 66 | U69: ='Effizienz-Faktor-Neu'!C68 -> .300 WSM | V69: ='Effizienz-Faktor-Neu'!T68 -> 4857.609347
T70: 64 | U70: ='Effizienz-Faktor-Neu'!C45 -> 9,3x62 Drückjagd | V70: ='Effizienz-Faktor-Neu'!T45 -> 4865.562331
T71: 68 | U71: ='Effizienz-Faktor-Neu'!C51 -> 9,3x62 | V71: ='Effizienz-Faktor-Neu'!T51 -> 4865.562331
T72: 69 | U72: ='Effizienz-Faktor-Neu'!C60 -> .260 Remington | V72: ='Effizienz-Faktor-Neu'!T60 -> 4882.349355
T73: 70 | U73: ='Effizienz-Faktor-Neu'!C53 -> 8x57IS | V73: ='Effizienz-Faktor-Neu'!T53 -> 4884.04802
T74: 71 | U74: ='Effizienz-Faktor-Neu'!C57 -> .260 Remington | V74: ='Effizienz-Faktor-Neu'!T57 -> 4884.729828
T75: 72 | U75: ='Effizienz-Faktor-Neu'!C70 -> .260 Remington | V75: ='Effizienz-Faktor-Neu'!T70 -> 4885.920935
T76: 73 | U76: ='Effizienz-Faktor-Neu'!C54 -> 9,3x62 | V76: ='Effizienz-Faktor-Neu'!T54 -> 4891.029462
T77: 74 | U77: ='Effizienz-Faktor-Neu'!C83 -> 6,5x64 Brenneke | V77: ='Effizienz-Faktor-Neu'!T83 -> 4904.713853
T78: 75 | U78: ='Effizienz-Faktor-Neu'!C97 -> 7x66 SE von Hofe | V78: ='Effizienz-Faktor-Neu'!T97 -> 4914.978245
T79: 76 | U79: ='Effizienz-Faktor-Neu'!C84 -> 7mm Weatherby Magnum | V79: ='Effizienz-Faktor-Neu'!T84 -> 4929.787917
T80: 77 | U80: ='Effizienz-Faktor-Neu'!C104 -> 7x66 SE von Hofe | V80: ='Effizienz-Faktor-Neu'!T104 -> 4933.131443
T81: 78 | U81: ='Effizienz-Faktor-Neu'!C35 -> 7mm-08 | V81: ='Effizienz-Faktor-Neu'!T35 -> 4939.0933
T82: 79 | U82: ='Effizienz-Faktor-Neu'!C79 -> 6,5x64 Brenneke | V82: ='Effizienz-Faktor-Neu'!T79 -> 4944.324368
T83: 80 | U83: ='Effizienz-Faktor-Neu'!C37 -> 7mm-08 | V83: ='Effizienz-Faktor-Neu'!T37 -> 4947.487
T84: 81 | U84: ='Effizienz-Faktor-Neu'!C48 -> 9,3x62 | V84: ='Effizienz-Faktor-Neu'!T48 -> 4948.282315
T85: 82 | U85: ='Effizienz-Faktor-Neu'!C81 -> 6,5x64 Brenneke | V85: ='Effizienz-Faktor-Neu'!T81 -> 4954.916827
T86: 83 | U86: ='Effizienz-Faktor-Neu'!C100 -> .270 Winchester | V86: ='Effizienz-Faktor-Neu'!T100 -> 4983.66322
T87: 84 | U87: ='Effizienz-Faktor-Neu'!C56 -> 7x64 | V87: ='Effizienz-Faktor-Neu'!T56 -> 4992.335192
T88: 85 | U88: ='Effizienz-Faktor-Neu'!C71 -> 7mm WSM | V88: ='Effizienz-Faktor-Neu'!T71 -> 4996.598754
T89: 86 | U89: ='Effizienz-Faktor-Neu'!C55 -> 7x64 | V89: ='Effizienz-Faktor-Neu'!T55 -> 5023.956267
T90: 87 | U90: ='Effizienz-Faktor-Neu'!C49 -> 8x64S | V90: ='Effizienz-Faktor-Neu'!T49 -> 5025.42721
T91: 88 | U91: ='Effizienz-Faktor-Neu'!C27 -> .308 Winchester | V91: ='Effizienz-Faktor-Neu'!T27 -> 5026.040764
T92: 89 | U92: ='Effizienz-Faktor-Neu'!C62 -> 7x64 | V92: ='Effizienz-Faktor-Neu'!T62 -> 5026.503266
T93: 90 | U93: ='Effizienz-Faktor-Neu'!C77 -> .270 Winchester | V93: ='Effizienz-Faktor-Neu'!T77 -> 5027.582895
T94: 91 | U94: ='Effizienz-Faktor-Neu'!C38 -> .416 Weatherby Magnum | V94: ='Effizienz-Faktor-Neu'!T38 -> 5041.914822
T95: 92 | U95: ='Effizienz-Faktor-Neu'!C72 -> 7mm Remington Magnum | V95: ='Effizienz-Faktor-Neu'!T72 -> 5052.42829
T96: 93 | U96: ='Effizienz-Faktor-Neu'!C28 -> 10,57 Meteor | V96: ='Effizienz-Faktor-Neu'!T28 -> 5069.85056
T97: 94 | U97: ='Effizienz-Faktor-Neu'!C59 -> 7x64 | V97: ='Effizienz-Faktor-Neu'!T59 -> 5071.497541
T98: 95 | U98: ='Effizienz-Faktor-Neu'!C69 -> 7mm WSM | V98: ='Effizienz-Faktor-Neu'!T69 -> 5100.143283
T99: 96 | U99: ='Effizienz-Faktor-Neu'!C31 -> 8x64S | V99: ='Effizienz-Faktor-Neu'!T31 -> 5121.915413
T100: 97 | U100: ='Effizienz-Faktor-Neu'!C30 -> 7mm-08 | V100: ='Effizienz-Faktor-Neu'!T30 -> 5148.736471
T101: 98 | U101: ='Effizienz-Faktor-Neu'!C44 -> .338 Lapua Magnum | V101: ='Effizienz-Faktor-Neu'!T44 -> 5166.421789
T102: 99 | U102: ='Effizienz-Faktor-Neu'!C47 -> .338 Lapua Magnum | V102: ='Effizienz-Faktor-Neu'!T47 -> 5181.883504
T103: 100 | U103: ='Effizienz-Faktor-Neu'!C39 -> .284 Winchester | V103: ='Effizienz-Faktor-Neu'!T39 -> 5188.934657
T104: 101 | U104: ='Effizienz-Faktor-Neu'!C43 -> .375 Remington Ultra Magnum | V104: ='Effizienz-Faktor-Neu'!T43 -> 5203.295797
T105: 102 | U105: ='Effizienz-Faktor-Neu'!C19 -> 10,3x72 Gian-Marchet® | V105: ='Effizienz-Faktor-Neu'!T19 -> 5222.793781
T106: 103 | U106: ='Effizienz-Faktor-Neu'!C41 -> 8x68S | V106: ='Effizienz-Faktor-Neu'!T41 -> 5224.730173
T107: 104 | U107: ='Effizienz-Faktor-Neu'!C36 -> .375 Remington Ultra Magnum | V107: ='Effizienz-Faktor-Neu'!T36 -> 5224.91614
T108: 105 | U108: ='Effizienz-Faktor-Neu'!C29 -> 10,57 Meteor | V108: ='Effizienz-Faktor-Neu'!T29 -> 5232.337997
T109: 106 | U109: ='Effizienz-Faktor-Neu'!C42 -> .375 Remington Ultra Magnum | V109: ='Effizienz-Faktor-Neu'!T42 -> 5238.217246
T110: 107 | U110: ='Effizienz-Faktor-Neu'!C40 -> .338 Lapua Magnum | V110: ='Effizienz-Faktor-Neu'!T40 -> 5243.532562
T111: 108 | U111: ='Effizienz-Faktor-Neu'!C32 -> .378 Weatherby Magnum | V111: ='Effizienz-Faktor-Neu'!T32 -> 5257.976507
T112: 109 | U112: ='Effizienz-Faktor-Neu'!C23 -> 9,3x64 | V112: ='Effizienz-Faktor-Neu'!T23 -> 5280.378886
T113: 110 | U113: ='Effizienz-Faktor-Neu'!C16 -> .416 Remington Magnum | V113: ='Effizienz-Faktor-Neu'!T16 -> 5288.250209
T114: 111 | U114: ='Effizienz-Faktor-Neu'!C46 -> .378 Weatherby Magnum | V114: ='Effizienz-Faktor-Neu'!T46 -> 5290.487182
T115: 112 | U115: ='Effizienz-Faktor-Neu'!C22 -> .416 Remington Magnum | V115: ='Effizienz-Faktor-Neu'!T22 -> 5305.241621
T116: 113 | U116: ='Effizienz-Faktor-Neu'!C21 -> .308 Winchester | V116: ='Effizienz-Faktor-Neu'!T21 -> 5340.413915
T117: 114 | U117: ='Effizienz-Faktor-Neu'!C24 -> .375 Ruger | V117: ='Effizienz-Faktor-Neu'!T24 -> 5341.038224
T118: 115 | U118: ='Effizienz-Faktor-Neu'!C26 -> .375 Ruger | V118: ='Effizienz-Faktor-Neu'!T26 -> 5342.253754
T119: 116 | U119: ='Effizienz-Faktor-Neu'!C20 -> .416 Remington Magnum | V119: ='Effizienz-Faktor-Neu'!T20 -> 5362.230227
T120: 117 | U120: ='Effizienz-Faktor-Neu'!C17 -> .375 Holland & Holland Magnum | V120: ='Effizienz-Faktor-Neu'!T17 -> 5398.985691
T121: 118 | U121: ='Effizienz-Faktor-Neu'!C6 -> .416/323 Gian-Marchet® | V121: ='Effizienz-Faktor-Neu'!T6 -> 5407.616445
T122: 119 | U122: ='Effizienz-Faktor-Neu'!C25 -> 8x68S | V122: ='Effizienz-Faktor-Neu'!T25 -> 5511.383255
T123: 120 | U123: ='Effizienz-Faktor-Neu'!C63 -> 7mm STW | V123: ='Effizienz-Faktor-Neu'!T63 -> 5562.899427
T124: 121 | U124: ='Effizienz-Faktor-Neu'!C34 -> .300 WSM | V124: ='Effizienz-Faktor-Neu'!T34 -> 5583.895227
T125: 122 | U125: ='Effizienz-Faktor-Neu'!C13 -> .375 Holland & Holland Magnum | V125: ='Effizienz-Faktor-Neu'!T13 -> 5593.952772
T126: 123 | U126: ='Effizienz-Faktor-Neu'!C15 -> 9,3x64 | V126: ='Effizienz-Faktor-Neu'!T15 -> 5627.842842
T127: 124 | U127: ='Effizienz-Faktor-Neu'!C10 -> .416 Taylor | V127: ='Effizienz-Faktor-Neu'!T10 -> 5629.718827
T128: 125 | U128: ='Effizienz-Faktor-Neu'!C18 -> .338 Winchester Magnum | V128: ='Effizienz-Faktor-Neu'!T18 -> 5642.452923
T129: 126 | U129: ='Effizienz-Faktor-Neu'!C14 -> 9,3x64 | V129: ='Effizienz-Faktor-Neu'!T14 -> 5645.053371
T130: 127 | U130: ='Effizienz-Faktor-Neu'!C9 -> .416 Taylor | V130: ='Effizienz-Faktor-Neu'!T9 -> 5751.34424
T131: 128 | U131: ='Effizienz-Faktor-Neu'!C12 -> .375 Holland & Holland Magnum | V131: ='Effizienz-Faktor-Neu'!T12 -> 5790.156441
T132: 129 | U132: ='Effizienz-Faktor-Neu'!C11 -> .416 Remington Magnum | V132: ='Effizienz-Faktor-Neu'!T11 -> 5791.961035
T133: 130 | U133: ='Effizienz-Faktor-Neu'!C7 -> .376 Steyr | V133: ='Effizienz-Faktor-Neu'!T7 -> 5875.946149
T134: 131 | U134: ='Effizienz-Faktor-Neu'!C33 -> .300 Weatherby Magnum | V134: ='Effizienz-Faktor-Neu'!T33 -> 5923.825307
T135: 132 | U135: ='Effizienz-Faktor-Neu'!C5 -> .416/323 Gian-Marchet® | V135: ='Effizienz-Faktor-Neu'!T5 -> 5930.847164
T136: 133 | U136: ='Effizienz-Faktor-Neu'!C8 -> 10,3x72 Gian-Marchet® | V136: ='Effizienz-Faktor-Neu'!T8 -> 5954.072664
